Cogmind - Beta 16 @@@ ROGUE MODE // 2025.11.25 @ 11:59:02 Player: Wyvric Result: Defending 0bPrime! Performance ------------- Evolutions (8) 4000 Regions Visited (28) 5600 Robots Destroyed (676) 3380 Value Destroyed (40148) 40148 Prototype IDs (141) 2820 Alien Tech Used (5) 1000 Bonus (45407) 45407 TOTAL SCORE: 102355 Bonus ------- High Alert Combat Kills 22327 Follower Combat Kills 2361 Network Hubs Disabled 400 Registered with UFD 300 Met Optimus in HQ 500 Met Imprinter 300 Destroyed Z-Imprinter 1000 Met Warlord at Base 500 MAIN.C Attacked Warlord 500 Warlord Defense Kills 440 Built Enhanced Grunts 300 A7 Reached Mainframe 300 Met R17 at Cetus 500 Found Hidden Lab 3000 Met R17 at Research 2000 Met Optimus at Protoforge 1000 Executed Drillbomb Mission 10000 Win 3000 Friendly Fire -3321 Cogmind --------- Core Integrity 346/1450 Matter 300/300 Energy 600/600 System Corruption 2% Temperature Cool (0) Movement Hovering (30) Location 0bPrime Parts ------- > --- POWER (2) -------- Improved Quantum Reactor Improved Quantum Reactor > --- PROPULSION (9) --- Experimental Antigrav System Gravjet Array Gravjet Array Concept Combat Aerolev Unit Concept Gyrokinetic System Concept Gyrokinetic System Concept Gyrokinetic System > --- UTILITY (9) ------ Experimental Power Amplifier Concept Thermoelectric Network Concept Antigrav Storage Unit Experimental Optical Array Experimental Targeting Computer Experimental Reaction Control System Advanced Phase Shifter Concept Core Shell Concept Impact Drone Bay (0/6) > --- WEAPON (4) ------- Cooled Directed Potential Cannon Concept Rapid Grenade Launcher > --- INVENTORY (25) --- Antimatter Reactor Hybrid Graviton Reactor Improved Antigrav System Power Amplifier Advanced Coolant Injector Concept Chromion Battery (800) Concept Chromion Battery (800) Concept NT7 Matterbank (750) Concept Weapon Articulator Experimental Core Analyzer Mini Quantum Capacitor Concept Core Shell Concept Core Shell Concept Core Shell Heavy Armor Plating Centrium Light Armor Plating Concept Impact Drone Bay (0/6) Concept Plasma Driver Concept EMP Blanket Launcher Concept EMP Blanket Launcher Peak State ------------ > --- POWER ------------ Experimental Antimatter Reactor Hybrid Graviton Reactor > --- PROPULSION ------- Experimental Antigrav System Experimental Antigrav System Experimental Antigrav System Gravjet Array Gravjet Array Gravjet Array > --- UTILITY ---------- Experimental Power Amplifier Concept Phasing Heat Sink Concept Thermoelectric Network Concept Antigrav Storage Unit Concept Networked Targeting System Mini Quantum Capacitor Concept Cloak Mesh Concept Beam Splitter Crosscalibrator > --- WEAPON ----------- Concept Plasma Driver Cooled Directed Potential Cannon > --- INVENTORY -------- Hybrid Graviton Reactor Experimental Antigrav System Gravjet Array Concept Combat Aerolev Unit Concept Gyrokinetic System Concept Gyrokinetic System Concept Gyrokinetic System Concept Thermoelectric Network Concept Chromion Battery Concept Chromion Battery Concept NT7 Matterbank Concept Weapon Articulator Advanced Phase Shifter Concept Impact Drone Bay Concept Impact Drone Bay Subatomic Replicator Concept Lightning Penetrator Concept Plasma Driver Cooled Directed Potential Cannon Concept EMP Blanket Launcher Concept EMP Blanket Launcher Concept Rapid Grenade Launcher [Rating: 294] Favorites ----------- Power Reinforced Deuterium Engine Engine Reinforced Deuterium Engine Power Core Neutrino Core Reactor Graviton Reactor Propulsion Armored Treads Treads Armored Treads Leg Zionite Composite Leg I Wheel Armored Wheel Hover Unit Combat Linear Gravjet Utility Huge Storage Unit Device Experimental Heat Sink Storage Huge Storage Unit Processor Advanced Signal Interpreter Hackware Advanced Hacking Suite Protection Improved Medium Armor Plating Weapon Plasma Rifle Energy Gun Plasma Rifle Energy Cannon Concept Plasma Driver Ballistic Gun Railgun Ballistic Cannon Heavy Assault Cannon Launcher Long-range Missile Launcher Special Weapon Plasma Cutter Special Melee Weapon Advanced Datajack Build | -11 -10 -10 -9 -9 -9 -9 -6 -6 -6 -6 -6 -5 -5 -5 -5 -5 -4 -4 -4 -4 -4 -4 -3 -3 -3 -2 -2 -2 ------- Run | Yrd Mat Min Mat Sto Rec Scr Fac Low Low Zio Dee Pro Fac Upp Upp War Pro Fac Ext Cet Arc Hub Res Arm Lab Res Qua Frg Slots Evolved 16 | . . . 2 . . . 6 . . . . . 2 . . . . 2 . . . . 2 . . 2 . . Power 1 | . . . . . . . . . . . . . 1 . . . . . . . . . . . . . . . Propulsion 6 | . . . 1 . . . 1 . . . . . . . . . . 2 . . . . 2 . . . . . Utility 7 | . . . 1 . . . 3 . . . . . 1 . . . . . . . . . . . . 2 . . Weapon 2 | . . . . . . . 2 . . . . . . . . . . . . . . . . . . . . . Parts Attached 480 | 7 4 5 23 22 4 16 64 2 9 9 26 4 22 10 6 18 3 13 19 10 6 11 22 18 2 6 6 113 Power 44 | 1 1 1 2 1 . . 2 . . . 2 . 4 . . 4 . 1 3 2 . 2 2 1 . 1 . 14 Engine 12 | 1 1 1 2 1 . . 2 . . . . . 2 . . 1 . . . . . . . . . . . 1 Core 6 | . . . . . . . . . . . . . 2 . . 2 . . 1 . . . . . . . . 1 Reactor 26 | . . . . . . . . . . . 2 . . . . 1 . 1 2 2 . 2 2 1 . 1 . 12 Propulsion 90 | 2 . 2 4 7 2 4 16 . 1 2 4 . 3 . . 1 1 3 2 1 1 1 7 5 1 . 2 18 Treads 43 | 2 . 2 4 7 2 . 12 . 1 2 . . 3 . . . 1 3 1 1 1 1 . . . . . . Leg 2 | . . . . . . . . . . . 2 . . . . . . . . . . . . . . . . . Wheel 8 | . . . . . . 4 4 . . . . . . . . . . . . . . . . . . . . . Hover 37 | . . . . . . . . . . . 2 . . . . 1 . . 1 . . . 7 5 1 . 2 18 Flight . | . . . . . . . . . . . . . . . . . . . . . . . . . . . . . Utility 214 | 2 2 2 7 8 1 7 24 . 5 3 14 1 14 5 4 9 2 4 7 4 2 4 10 8 1 5 2 57 Device 113 | 1 1 2 3 2 . 4 13 . 3 . 4 . 5 3 4 4 2 2 2 1 1 4 7 2 1 4 2 36 Storage 14 | 1 1 . 2 . . 2 1 . . . 3 . 1 . . . . . . . . . . . . . . 3 Processor 29 | . . . . 2 . 1 4 . 1 2 . 1 2 2 . 1 . 1 1 . . . 2 2 . . . 7 Hackware 9 | . . . . . . . 1 . . . . . 2 . . . . . . . . . 1 4 . 1 . . Protection 49 | . . . 2 4 1 . 5 . 1 1 7 . 4 . . 4 . 1 4 3 1 . . . . . . 11 Artifact . | . . . . . . . . . . . . . . . . . . . . . . . . . . . . . Weapon 132 | 2 1 . 10 6 1 5 22 2 3 4 6 3 1 5 2 4 . 5 7 3 3 4 3 4 . . 2 24 Energy Gun 54 | . . . 4 . . . 12 1 3 1 5 2 . 1 . 3 . 4 1 1 1 1 3 3 . . 2 6 Energy Cannon 13 | . . . 1 . . . . . . 2 1 . . . . 1 . 1 . . . . . . . . . 7 Ballistic Gun 45 | 2 1 . 4 3 . 2 6 . . 1 . 1 1 3 2 . . . 5 2 1 3 . . . . . 8 Ballistic Cannon 8 | . . . . 1 . 3 1 . . . . . . . . . . . . . . . . 1 . . . 2 Launcher 6 | . . . 1 1 . . 1 1 . . . . . 1 . . . . . . . . . . . . . 1 Special Weapon 5 | . . . . 1 1 . 2 . . . . . . . . . . . 1 . . . . . . . . . Impact Weapon . | . . . . . . . . . . . . . . . . . . . . . . . . . . . . . Slashing Weapon . | . . . . . . . . . . . . . . . . . . . . . . . . . . . . . Piercing Weapon . | . . . . . . . . . . . . . . . . . . . . . . . . . . . . . Special Melee Weapon 1 | . . . . . . . . . . . . . . . . . . . . . 1 . . . . . . . Unidentified Prototypes 65 | . . 1 5 2 . . 1 . . . 17 . 1 1 . 5 . 2 1 7 . . . 1 3 1 . 17 Parts Lost 97 | . 2 4 6 3 1 . 31 . . . 1 . 7 1 . . . . . 1 . 3 1 . . . . 36 Power 8 | . . 1 1 . . . 1 . . . . . . . . . . . . . . 1 . . . . . 4 Propulsion 22 | . . 2 2 . . . 7 . . . . . 1 . . . . . . 1 . . 1 . . . . 8 Utility 37 | . 1 1 1 3 . . 8 . . . . . 4 . . . . . . . . 1 . . . . . 18 Weapon 30 | . 1 . 2 . 1 . 15 . . . 1 . 2 1 . . . . . . . 1 . . . . . 6 Highest Loss Streak 6 | . 1 3 2 1 1 . 6 . . . 1 . 3 1 . . . . . 1 . 2 1 . . . . 4 To Critical Strikes 2 | . . . . . . . . . . . . . . . . . . . . 1 . . . . . . . 1 Average Backups 22 | 6 13 12 17 24 24 26 25 22 23 23 21 24 23 23 24 23 23 23 23 24 23 22 19 19 16 19 18 22 Power . | . . . . 1 1 1 . . . . . . . 1 1 1 1 1 1 2 2 1 1 1 . . 1 1 Propulsion 4 | 4 5 5 6 10 10 9 7 3 2 2 1 4 4 2 2 2 5 3 2 2 4 4 2 2 1 1 2 2 Utility 9 | . 1 1 2 3 5 7 8 8 7 8 11 13 12 12 12 10 10 11 11 12 10 10 9 8 7 9 8 10 Weapon 6 | . 5 5 8 8 7 7 4 7 9 9 5 5 5 6 7 7 6 7 7 7 7 6 5 7 5 7 4 6 Tool/Special . | . . . . . . . . . . . . . . . . . . . . . . . . . . . . . Unused Backups 140 | 2 9 1 5 7 1 7 9 1 . 2 6 . 7 6 1 5 . 2 . 4 . 1 7 2 2 1 3 49 Power 12 | . . . . 1 . . 2 . . . . . 2 1 . . . . . 2 . . . . . . . 4 Propulsion 16 | 2 3 . 2 . 1 1 . . . . . . 1 1 . . . . . . . . 1 . . . 1 3 Utility 64 | . . . . 3 . 4 4 1 . 1 2 . 2 4 1 3 . . . 2 . 1 2 2 . . 1 31 Weapon 47 | . 6 1 3 3 . 2 3 . . 1 3 . 2 . . 2 . 2 . . . . 4 . 2 1 1 11 Tool/Special 1 | . . . . . . . . . . . 1 . . . . . . . . . . . . . . . . . Average Slot Usage (%) 88 | . 89 87 93 99 96 83 88 73 76 88 94 93 96 87 87 84 87 84 83 85 88 84 89 96 98 99 95 85 Engine 4 | . 14 10 10 11 11 11 5 6 6 6 1 6 9 . . . . . . . . . . . . . . . Core 2 | . . . . . . . . . . . . . . 11 11 10 5 . 1 9 5 1 . . . . . . Reactor 2 | . . . . . . . . . . . 4 . . . . . 5 5 4 . 5 8 8 9 9 8 8 7 Treads 17 | . 28 27 31 33 33 8 16 26 26 26 25 26 20 11 11 11 10 20 21 20 21 15 . . . . . . Wheel 1 | . . . . . . 20 5 . . . . . . . . . . . . . . . . . . . . . Hover 4 | . . . . . . . . . . . . . . . . . . . . . . . 27 34 38 37 33 29 Device 14 | . 4 5 5 1 3 3 12 6 13 19 14 13 20 17 17 24 22 17 16 16 14 16 11 12 12 15 16 23 Storage 6 | . 14 14 11 11 11 11 6 6 6 6 6 6 5 5 5 5 5 5 5 5 5 5 4 4 4 4 4 4 Processor 6 | . . . . 10 11 7 8 . . 2 5 4 6 8 11 7 5 7 9 9 5 5 8 11 13 12 12 5 Protection 4 | . . . 12 9 7 2 4 6 2 2 6 7 5 7 4 1 5 5 3 4 10 8 2 . . . 1 3 Energy Gun 8 | . . . 3 1 . . 8 12 13 16 23 25 21 8 1 . . 12 8 . . 2 17 18 18 16 16 2 Ballistic Gun 9 | . 27 28 17 17 16 5 15 . . 2 . . 1 11 20 19 23 7 11 17 20 18 1 . . . . 2 Peak Build Rating 294 | 7 8 17 21 24 25 39 78 78 82 83 86 86 112 111 108 117 119 143 147 152 148 155 172 179 188 206 209 294 Average Rating 100 | 6 7 8 14 21 21 25 55 76 78 75 76 83 99 105 106 104 117 137 140 135 147 150 164 173 174 202 206 265 On Entrance 96 | . 7 8 9 20 22 19 38 78 78 82 68 82 86 99 107 99 117 119 141 136 148 148 134 172 179 188 204 206 Avg Prop Armor Cover (%) 2 | . . . . . . . 5 . . . . . . . . . . . . . . . . 4 . . . 1 Naked Turns . | . . . . . . . . . . . . . . . . . . . . . . . . . . . . . Heaviest Build 240 | 13 29 30 100 101 98 222 240 144 139 127 124 124 149 151 151 158 149 172 165 172 170 169 130 103 108 112 129 139 Greatest Support 220 | 40 40 43 72 60 60 60 99 99 99 99 88 88 140 140 140 140 145 199 199 204 204 220 220 108 122 139 131 146 Greatest Overweight (x) 8 | . . . 2 1 1 5 8 1 1 1 1 1 1 1 1 2 2 . . 1 . 1 . 1 . . . 1 Average Overweight (x) . | . . . . 1 1 2 2 1 1 1 . 1 . . . . 1 . . . . . . . . . . . Largest Inventory Capacity 35 | 8 15 15 25 25 25 35 35 25 25 25 25 25 25 25 25 25 25 25 25 25 25 25 25 20 20 20 20 25 Average Capacity 24 | 7 14 15 19 25 25 28 28 25 25 25 24 25 25 25 25 25 25 25 25 25 25 25 20 20 20 20 20 24 Most Carried 35 | 8 15 14 25 25 25 35 35 25 25 25 25 25 25 25 25 25 25 25 25 25 25 25 25 20 20 20 20 25 Average Carried 23 | 6 13 12 17 24 24 27 27 23 24 24 21 24 24 24 24 24 25 24 24 24 25 24 18 19 15 19 19 24 Final Capacity 35 | 8 15 15 25 25 25 35 25 25 25 25 25 25 25 25 25 25 25 25 25 25 25 25 20 20 20 20 20 25 Final Carried 35 | 8 14 13 22 25 25 35 23 25 24 25 25 25 24 25 25 25 25 25 24 25 25 25 20 20 20 20 20 21 Scrap Suit Usage (%) 1 | . . . . . . . . . . . . . . . . . . . . . . . . . . . . 1 Class Distribution -------------------- 16% | Scavenger-Skirmisher 16% | Scavenger-Tank 13% | Mutant 10% | Tank 7% | Scavenger-Gunner 5% | Scavenger-Sprinter 4% | Commander-Tank 3% | Derelict-Skirmisher 3% | Scavenger-Mutant Dominant Class ---------------- Mutant | -10/Materials Mutant | -10/Mines Mutant | -9/Materials Scavenger-Mutant | -9/Storage Mutant | -9/Recycling Mutant | -9/Scraptown Scavenger-Skirmisher | -6/Factory Scavenger-Skirmisher | -6/Lower Caves Scavenger-Skirmisher | -6/Lower Caves Derelict-Skirmisher | -6/Zion Scavenger-Gunner | -6/Deep Caves Scavenger-Skirmisher | -5/Proximity Caves Scavenger-Skirmisher | -5/Factory Tank | -5/Upper Caves Tank | -5/Upper Caves Commander-Tank | -5/Warlord Scavenger-Tank | -4/Proximity Caves Scavenger-Tank | -4/Factory Commander-Tank | -4/Extension Commander-Tank | -4/Cetus Scavenger-Tank | -4/Archives Scavenger-Tank | -4/Hub_04(d) Scavenger-Skirmisher | -3/Research Scavenger-Sprinter | -3/Armory Machinist-Scout | -3/Lab Hacker-Scout | -2/Research Machinist-Scout | -2/Quarantine Scavenger-Sprinter | -2/Protoforge Resources | -11 -10 -10 -9 -9 -9 -9 -6 -6 -6 -6 -6 -5 -5 -5 -5 -5 -4 -4 -4 -4 -4 -4 -3 -3 -3 -2 -2 -2 ----------- Run | Yrd Mat Min Mat Sto Rec Scr Fac Low Low Zio Dee Pro Fac Upp Upp War Pro Fac Ext Cet Arc Hub Res Arm Lab Res Qua Frg Matter Collected 19712 | 384 369 158 520 965 138 216 2159 570 355 127 581 240 368 755 361 603 283 550 953 567 667 1313 675 421 . 288 16 5110 Remotely 2624 | 167 . . . . . . 854 . . . . . . . . . . . 156 . . . . . . . . 1447 Salvage Created 35617 | 202 553 186 868 1596 274 . 3347 200 151 . 555 405 1600 646 228 233 247 1583 2577 313 572 2015 698 292 . 288 59 15929 Parts 1485 | 16 38 9 66 88 16 . 152 13 4 . 13 17 109 23 7 1 10 62 79 21 33 82 20 5 . 12 . 589 Haulers Intercepted 4 | . 1 . 2 1 . . . . . . . . . . . . . . . . . . . . . . . . Recyclers Shooed 16 | . . . 1 1 1 . 6 . . . . . 2 . . . . 2 3 . . . . . . . . . Parts Field Recycled 5 | . . . . . . . . . . . . . . . . . . . . . . . . . . . 5 . Retrieved Matter 264 | . . . . . . . . . . . . . . . . . . . . . . . . . . . 264 . Parts Self-Destructed 60 | . . . . . . . . 9 3 . . 18 . 19 1 . 10 . . . . . . . . . . . Prevented 2 | . . . . . . . . . . . . 2 . . . . . . . . . . . . . . . . Parts Restored 12 | . . . . . . . . . . . . . . . . . . . . . . . . . . . . 12 Faulty 12 | . . . . . . . . . . . . . . . . . . . . . . . . . . . . 12 Kills | -11 -10 -10 -9 -9 -9 -9 -6 -6 -6 -6 -6 -5 -5 -5 -5 -5 -4 -4 -4 -4 -4 -4 -3 -3 -3 -2 -2 -2 ------- Run | Yrd Mat Min Mat Sto Rec Scr Fac Low Low Zio Dee Pro Fac Upp Upp War Pro Fac Ext Cet Arc Hub Res Arm Lab Res Qua Frg Combat Hostiles Destroyed 593 | . 17 7 18 30 4 . 52 8 4 . 17 4 32 15 . 3 3 22 34 3 1 27 7 5 . 2 . 278 Guns 303 | . 17 7 18 30 4 . 50 . . . 16 3 27 7 . 3 3 12 26 3 1 26 5 3 . 2 . 40 Cannons 104 | . . . . . . . . 1 . . . . . . . . . 2 . . . . . . . . . 101 AOE 121 | . . . . . . . 2 7 4 . . . 5 8 . . . 2 . . . . . . . . . 93 Classes Destroyed 34 | 2 4 . 2 6 . . 5 1 . . 2 1 . . . . . . 2 . . 1 . . . . . 8 Worker 14 | . 1 . 2 1 . . 1 . . . . . 2 . . . . 3 . . . 1 . . . . 1 2 Builder 12 | . . . . 1 . . 1 . . . . . 4 . . . . 5 1 . . . . . . . . . Tunneler 8 | 6 . . 1 . . . 1 . . . . . . . . . . . . . . . . . . . . . Hauler 4 | . 1 . 2 1 . . . . . . . . . . . . . . . . . . . . . . . . Recycler 16 | 1 . . 2 . 1 . 5 . . . . . 1 . . . . 1 3 . . . 1 . . 1 . . Carrier 3 | . . . . . . . . . . . . . . . . . . . . . . . . . . . . 3 Mechanic 10 | . . . . 2 . . . . . . . . 1 . . . . . 1 . . 2 . . . . . 4 Operator 9 | . . . . 2 . . . . . . . . . . . . . . . . 6 . . . . . . 1 Drone 13 | . . . . . . . . . . . . . . . . . . . . . . . . . . . . 13 Watcher 10 | . . . 1 2 . . 1 . . . . . . . . . . . 1 1 . 1 1 . . . 1 1 Swarmer 95 | . 8 5 8 3 . . 7 7 . . . 2 13 5 . . . 4 8 . . 3 . 3 . . . 19 Cutter 3 | . . . . . . . 3 . . . . . . . . . . . . . . . . . . . . . Saboteur 7 | . . . . . . . . . . . . . . . . . . . . . . 1 . . . . . 6 Grunt 164 | . 9 2 6 15 . . 24 . 4 . . 1 7 3 . . 3 10 13 . . 16 . . . . . 51 Brawler 19 | . . . . 1 . . 1 . . . . . . 2 . . . . 1 . . 1 . . . . . 13 Duelist 20 | . . . . 1 . . . . . . . . . 3 . . . . . . . . . . . . . 16 Protector 17 | . . . . 1 . . . . . . . . . . . . . . . . . . . . . . . 16 Researcher 2 | . . . . . . . . . . . . . . . . . . . . . . . . . . . . 2 Sentry 52 | . . . 4 10 4 . 4 . . . . . 1 2 . . . 4 7 . 1 2 3 2 . . . 8 Demolisher 1 | . . . . . . . . . . . . . . . . . . . 1 . . . . . . . . . Specialist 8 | . . . . . . . 2 . . . . . . . . 1 . . 1 . . 1 . . . . . 3 Hunter 36 | . . . . . . . 4 . . . . 1 1 . . . . 2 . . . . 4 . . . . 24 Programmer 63 | . . . . . . . 6 1 . . . . 10 . . 3 . 2 2 . . 2 . . . 2 . 35 Heavy 1 | . . . . . . . 1 . . . . . . . . . . . . . . . . . . . . . Behemoth 2 | . . . . . . . . . . . . . . . . . . . 1 . . 1 . . . . . . Cetus Guard 3 | . . . . . . . . . . . . . . . . . . . . 3 . . . . . . . . Enhanced Grunt 1 | . . . . . . . . . . . 1 . . . . . . . . . . . . . . . . . Hotshot 6 | . . . . . . . . . . . . . . . . . . . . . . . . . . . . 6 Decapitator 3 | . . . . . . . . . . . . . . . . . . . . . . . . . . . . 3 Immortal 4 | . . . . . . . . . . . . . . . . . . . . . . . . . . . . 4 Striker 24 | . . . . . . . . . . . . . . . . . . . . . . . . . . . . 24 Executioner 28 | . . . . . . . . . . . . . . . . . . . . . . . . . . . . 28 Alpha 7 4 | . . . . . . . . . . . . . . . . . . . . . . . . . . . . 4 V-Series 4 | . . . . . . . . . . . . . . . . . . . . . . . . . . . . 4 Ranger 3 | . . . . . . . . . . . . 3 . . . . . . . . . . . . . . . . Scrapoid 1 | . . . . . . . . . . . . . . . . . . . . . . . . . . . . 1 Z-Light 5 | . . . . . . . . . . . 5 . . . . . . . . . . . . . . . . . Decomposer 5 | . . . . . . . . . . . . . . . 5 . . . . . . . . . . . . . Packrat 1 | . . . . . . . . . . . . . . 1 . . . . . . . . . . . . . . Samaritan 5 | . . . . . . . . 2 . . . . . 2 1 . . . . . . . . . . . . . Assembled 12 | . . . . . . . . . . . 12 . . . . . . . . . . . . . . . . . Thug 3 | . . . . . . . . . . . . . . . . . . . . . 3 . . . . . . . Savage 1 | . . . . . . . . . . . . . . . . . . . . . 1 . . . . . . . Best Kill Streak 22 | 3 6 3 5 6 1 . 9 4 4 . 5 2 10 7 . 3 2 9 8 2 4 8 2 3 . 2 1 22 Combat Bots Only 22 | . 3 3 5 4 1 . 6 4 4 . 5 2 9 7 . 3 2 6 8 2 1 8 2 3 . 2 . 22 Max Kills in Single Turn 5 | 1 1 1 2 2 1 . 3 4 3 . 2 1 3 4 1 1 1 2 2 1 2 2 1 1 . 1 1 5 Gunslinging 1 | . . . . . . . 1 . . . 1 . 1 . . . . . 1 . . 1 . . . . . 1 Exploded 5 | . . . . . . . 2 4 3 . . . 3 4 . . . 1 . . . . . . . . . 5 Melee . | . . . . . . . . . . . . . . . . . . . . . . . . . . . . . Uniques/NPCs Destroyed 2 | . . . . . . . . . . . 1 . . . . . . . . 1 . . . . . . . . Z-Imprinter (-6/Deep Caves) A7 (-4/Cetus) Combat | -11 -10 -10 -9 -9 -9 -9 -6 -6 -6 -6 -6 -5 -5 -5 -5 -5 -4 -4 -4 -4 -4 -4 -3 -3 -3 -2 -2 -2 -------- Run | Yrd Mat Min Mat Sto Rec Scr Fac Low Low Zio Dee Pro Fac Upp Upp War Pro Fac Ext Cet Arc Hub Res Arm Lab Res Qua Frg Hostile Shots Fired 2555 | . 61 51 110 162 16 . 470 16 9 . 42 15 176 43 . 3 6 124 96 22 4 192 47 15 . 84 7 784 Missed 961 | . 12 7 26 50 2 . 136 6 3 . 14 2 58 15 . 2 1 50 27 8 1 62 18 5 . 54 4 398 Hits 1594 | . 49 44 84 112 14 . 334 10 6 . 28 13 118 28 . 1 5 74 69 14 3 130 29 10 . 30 3 386 Melee 23 | . . . . . . . 7 . . . 2 . . . . . . . . . . 1 . . . . . 13 Projectile 1571 | . 49 44 84 112 14 . 327 10 6 . 26 13 118 28 . 1 5 74 69 14 3 129 29 10 . 30 3 373 AOE 26 | . . . . . . . 4 . . . . . . . . . . . 1 . . 1 . . . . . 20 Critical Strikes 80 | . . 2 1 3 . . 14 . . . 1 . 4 1 . . . 3 6 4 . 13 1 . . . . 27 Actively Blocked 28 | . . . . . . . . . . . . . 2 . . . . 3 4 2 . 2 . . . . . 15 Part Disruptions 10 | . . . . . . . 5 . . . . . . . 1 . . . . . . 3 . . . . . 1 Damage Taken 30082 | . 507 445 964 1514 201 . 5848 174 114 . 690 250 1934 344 24 47 50 1232 931 246 78 2732 576 244 . 478 157 10302 Core 2364 | . 79 62 75 201 29 . 479 . . . 10 14 164 53 6 17 . 22 37 27 . 164 30 22 . 108 . 765 Absorbed by Shields 4395 | . . . . . . . . . . . . . 252 328 27 46 47 667 483 143 24 601 . . . . 26 1751 Redirected to Shielding 997 | . . . . . . . . . . . 58 20 352 . . . . . . . . . . . . . . 567 Ignored by Resistances 363 | . . . . . . . . . . . . . . . . . . . . . . . . . . . . 363 Regen/Repaired (Parts) 1781 | . . . . . . . . . . 712 . . . . . . . . . 37 18 178 197 13 . 72 151 403 Core Remaining (%) 59 | 100 . 43 . . . 23 . . . . . 40 . . . . 76 . . . . 78 . . 96 . . 23 Volleys Fired 1731 | 19 56 22 74 88 14 . 146 14 3 1 106 15 95 28 10 8 7 81 70 22 24 65 54 50 5 39 18 597 Largest 4 | 2 2 2 2 2 2 . 4 2 1 1 4 4 4 4 4 4 4 4 4 4 4 4 4 4 1 4 4 4 Hottest 300 | 40 40 40 76 79 46 . 235 120 43 80 300 300 240 177 126 136 136 288 140 140 140 177 208 202 65 178 219 300 Shots Fired 3894 | 38 111 44 148 169 27 . 543 23 7 1 188 60 262 91 18 26 28 215 255 78 97 244 127 87 5 56 31 915 Gun 3299 | 38 111 44 147 163 27 . 537 11 2 . 112 60 260 85 18 24 28 194 254 77 97 244 127 87 5 56 31 460 Cannon 561 | . . . . 5 . . 1 8 2 1 71 . . . . 2 . 21 . . . . . . . . . 450 Launcher 22 | . . . 1 1 . . . 4 3 . . . 2 6 . . . . . . . . . . . . . 5 Special 12 | . . . . . . . 5 . . . 5 . . . . . . . 1 1 . . . . . . . . Kinetic 1846 | 38 111 44 117 152 27 . 382 8 2 . . . 29 43 8 24 28 52 121 76 97 202 . . . . . 285 Thermal 1560 | . . . 30 16 . . 107 2 2 1 187 60 . . . 2 . 148 133 1 . 42 127 87 5 56 31 523 Explosive 22 | . . . 1 1 . . . 4 3 . . . 2 6 . . . . . . . . . . . . . 5 Electromagnetic 165 | . . . . . . . 49 9 . . . . . 7 1 . . 15 . . . . . . . . . 84 Entropic 18 | . . . . . . . . . . . . . . . . . . . . . . . . . . . . 18 Phasic 275 | . . . . . . . . . . . . . 231 35 9 . . . . . . . . . . . . . Robot Hit Streak 40 | 6 8 11 16 21 17 . 15 9 2 . 6 8 13 11 6 8 10 8 21 11 10 15 9 17 . 9 8 40 Robot Miss Streak 8 | 2 3 3 5 2 1 . 6 2 1 . 4 3 7 6 1 1 2 8 5 4 6 5 4 3 . 1 2 5 Penetration Max 2 | . . . . . . . 1 . . . . . 1 . . . . . 2 1 1 1 . . . . . 2 Secondary Targets 80 | . 1 5 1 5 . . 15 . . . 7 1 10 . . 1 1 1 8 1 . 8 . 1 . . . 14 Max Gunslinging Chain 2 | . 1 1 1 1 . . 2 . . . 2 1 2 . . 1 1 1 1 1 . 1 . 1 . . . 2 Capacitor 351 | . . . . . . . . . . . . . . . . . . . . . . . . . . . . 351 Shots Hit Robots 2285 | 25 73 27 96 131 21 . 334 10 2 . 60 33 134 46 10 17 18 94 165 55 53 141 56 27 . 13 15 629 Core Hits 1157 | 8 29 11 44 62 10 . 142 11 8 . 28 14 68 43 8 7 9 46 78 18 28 67 24 9 . 8 5 372 Critical Kills 66 | . . . . . . . 3 . . . . . 3 2 . 2 1 3 2 . . 9 . . . . . 41 Critical Parts Destroyed 57 | 1 . 1 . . . . 2 . . . . . 2 1 . 3 2 2 2 1 2 13 1 . . . . 24 Critical Strikes 196 | 1 . 1 1 . . . 7 1 . . 5 4 11 5 2 5 3 12 20 1 2 24 5 5 . 1 . 80 Burn 47 | . . . 1 . . . 1 . . . 5 4 . . . . . 7 16 . . 2 3 5 . 1 . 2 Meltdown 32 | . . . . . . . . . . . . . . . . . . . . . . . . . . . . 32 Destroy 98 | 1 . 1 . . . . 5 . . . . . 5 3 . 5 3 5 4 1 2 22 2 . . . . 39 Blast 2 | . . . . . . . . 1 . . . . . . . . . . . . . . . . . . . 1 Corrupt 7 | . . . . . . . 1 . . . . . . . . . . . . . . . . . . . . 6 Intensify 10 | . . . . . . . . . . . . . 6 2 2 . . . . . . . . . . . . . Melee Attacks . | . . . . . . . . . . . . . . . . . . . . . . . . . . . . . Impact . | . . . . . . . . . . . . . . . . . . . . . . . . . . . . . Slashing . | . . . . . . . . . . . . . . . . . . . . . . . . . . . . . Piercing . | . . . . . . . . . . . . . . . . . . . . . . . . . . . . . Sneak Attacks . | . . . . . . . . . . . . . . . . . . . . . . . . . . . . . Combat Hostiles . | . . . . . . . . . . . . . . . . . . . . . . . . . . . . . Follow-up Attacks . | . . . . . . . . . . . . . . . . . . . . . . . . . . . . . Damage Inflicted 126360 | 323 917 356 1387 2185 374 . 7697 908 495 . 1431 705 5460 2230 316 279 282 3392 4861 1557 1671 4460 1383 728 . 396 444 82123 Guns 50485 | 323 917 356 1340 2167 365 . 7164 142 . . 1398 705 4338 1108 316 279 282 2186 4861 1557 1671 4399 1383 728 . 396 444 11660 Cannons 35411 | . . . . . . . . 182 . . . . . . . . . 392 . . . . . . . . . 34837 Explosions 40216 | . . . 29 . . . 503 584 495 . . . 1119 1122 . . . 738 . . . . . . . . . 35626 Melee . | . . . . . . . . . . . . . . . . . . . . . . . . . . . . . Ramming 215 | . . . 18 18 9 . 30 . . . . . 3 . . . . 76 . . . 61 . . . . . . Kinetic 30012 | 323 917 356 1037 1921 365 . 5150 182 . . . . 180 420 52 279 282 389 2405 1557 1671 3681 . . . . . 8845 Thermal 82533 | . . . 303 246 . . 1854 . . . 1431 705 598 . . . . 2535 2456 . . 718 1383 728 . 396 444 68736 Explosive 3703 | . . . 29 . . . . 536 495 . . . 521 1122 . . . . . . . . . . . . . 1000 Electromagnetic 4214 | . . . . . . . 663 190 . . . . . 127 . . . 392 . . . . . . . . . 2842 Impact . | . . . . . . . . . . . . . . . . . . . . . . . . . . . . . Slashing . | . . . . . . . . . . . . . . . . . . . . . . . . . . . . . Piercing . | . . . . . . . . . . . . . . . . . . . . . . . . . . . . . Entropic 700 | . . . . . . . . . . . . . . . . . . . . . . . . . . . . 700 Phasic 4983 | . . . . . . . . . . . . . 4158 561 264 . . . . . . . . . . . . . Highest Corruption 14 | . 4 4 4 4 4 . 8 10 10 10 . . 9 9 9 9 . 4 6 6 6 10 . . . 1 1 14 Average Corruption 6 | . 2 4 3 4 4 . 5 9 10 10 . . 4 9 9 9 . 3 4 6 5 3 . . . 1 1 10 Corruption Purged 21 | . . . . . . . . . . . . . . . . . . . . . 6 . . . . . 1 14 Corruption Blocked . | . . . . . . . . . . . . . . . . . . . . . . . . . . . . . Effects 762 | . 11 20 12 42 29 . 57 70 66 4 . . 21 105 86 2 . 12 35 15 7 9 . . . 1 2 156 Message Errors 174 | . . 7 4 10 10 . 18 20 14 . . . 2 28 17 1 . 1 8 3 . 2 . . . . . 29 Matter Fused 163 | . 1 4 4 9 7 . 9 13 15 1 . . 5 26 21 1 . 3 7 4 1 3 . . . . . 29 Heat Flow Errors 90 | . 2 1 1 1 6 . 5 8 10 . . . 4 13 12 . . 2 2 1 . . . . . . 2 20 Energy Discharges 93 | . 2 2 1 4 1 . 3 16 9 . . . 2 11 16 . . 1 7 . 1 . . . . 1 . 16 Parts Rejected 8 | . . 1 . 1 . . . . . . . . . . . . . . . . . . . . . . . 6 Parts Fused 6 | . . 1 . . . . . 1 1 . . . . . . . . . . . . . . . . . . 3 Data Loss (minor) 94 | . 3 2 . 10 1 . 10 6 8 2 . . 4 9 7 . . 1 7 1 2 3 . . . . . 18 Data Loss (major) 46 | . 1 2 . 4 3 . 8 1 5 . . . 1 3 7 . . 1 2 1 . . . . . . . 7 Misfires 37 | . 1 . 1 1 . . 2 5 4 . . . 2 7 5 . . 1 2 . 2 . . . . . . 4 Alerts 14 | . . . 1 2 1 . 1 . . 1 . . . 5 1 . . . . 1 . . . . . . . 1 Misdirections 1 | . . . . . . . . . . . . . . . . . . . . . . . . . . . . 1 Weapon Failures 36 | . 1 . . . . . 1 . . . . . 1 3 . . . 2 . 4 1 1 . . . . . 22 Overload Shots 125 | . . . . . . . . . . . . . . . . . . 27 8 1 . 5 30 19 . 26 5 4 Effects 6 | . . . . . . . . . . . . . . . . . . 1 . . . . 2 1 . 1 . 1 Energy Bleed 3 | . . . . . . . . . . . . . . . . . . . . . . . 2 . . 1 . . Heat Surge 2 | . . . . . . . . . . . . . . . . . . 1 . . . . . . . . . 1 Short Circuit 1 | . . . . . . . . . . . . . . . . . . . . . . . . 1 . . . . Overflow Damage 9951 | . . . 3 . . . 27 43 . . 11 . 238 50 . . . 47 . . . 39 . . . . . 9493 Projectiles 4955 | . . . . . . . . 8 . . 11 . . . . . . . . . . . . . . . . 4936 Explosions 4957 | . . . 3 . . . 27 35 . . . . 238 50 . . . 47 . . . . . . . . . 4557 Melee 39 | . . . . . . . . . . . . . . . . . . . . . . 39 . . . . . . Knockbacks 19 | . . . . 1 . . . 2 . . . . . . . . . . . . . . . . . . . 16 Impact 1 | . . . . 1 . . . . . . . . . . . . . . . . . . . . . . . . Kinetic 16 | . . . . . . . . 2 . . . . . . . . . . . . . . . . . . . 14 Secondary 2 | . . . . . . . . . . . . . . . . . . . . . . . . . . . . 2 Self-Inflicted Damage 744 | . . . 12 . . . 324 24 . . . . 23 48 . . . 255 . . . . . . . . . 58 Shots 13 | . . . 1 . . . 4 1 . . . . 1 1 . . . 4 . . . . . . . . . 1 Rammed 16 | . . . 3 3 2 . 1 . . . . . 1 . . . . 4 . . . 2 . . . . . . Targets Rammed 19 | . . . 3 4 2 . 1 . . . . . 1 . . . . 6 . . . 2 . . . . . . Kicked . | . . . . . . . . . . . . . . . . . . . . . . . . . . . . . Crushed 3 | . . . . 1 . . . . . . . . . . . . . 2 . . . . . . . . . . Highest Temperature 437 | . 265 216 288 208 279 . 390 274 279 . 240 370 283 232 292 121 120 437 176 239 157 319 201 344 148 249 157 272 Average Temperature 87 | . 86 69 89 29 109 . 95 82 99 . 73 123 70 73 109 46 47 108 38 57 40 95 71 108 62 75 43 104 Received Heat Transfer 4747 | . 177 153 342 633 72 . 1407 . 45 . 226 36 228 53 . . 20 109 196 7 7 357 36 27 . 54 18 544 Thermoelectric Energy+ 4099 | . . . . . . . . . . . . . . . . . . . . . . . . . . . . 4099 Effects 21 | . . . . . . . 6 . . . . 2 1 . 1 . . 1 . . . . . 1 . . . 9 Shutdowns 1 | . . . . . . . . . . . . 1 . . . . . . . . . . . . . . . . Energy Bleed 8 | . . . . . . . 2 . . . . 1 1 . 1 . . . . . . . . 1 . . . 2 Interference 10 | . . . . . . . 3 . . . . . . . . . . . . . . . . . . . . 7 Short Circuit 1 | . . . . . . . 1 . . . . . . . . . . . . . . . . . . . . . Damage (minor) 1 | . . . . . . . . . . . . . . . . . . 1 . . . . . . . . . . Siege Activations . | . . . . . . . . . . . . . . . . . . . . . . . . . . . . . Martial Activations . | . . . . . . . . . . . . . . . . . . . . . . . . . . . . . Shielding Activations . | . . . . . . . . . . . . . . . . . . . . . . . . . . . . . Robots Disrupted 2 | . . . . . . . . . . . . . . . . . . 1 . . . . . . . . . 1 Combat Hostiles 2 | . . . . . . . . . . . . . . . . . . 1 . . . . . . . . . 1 Robots Corrupted 12 | . . . . . . . . . . . . . . . . . . . . . . . . . . . . 12 Combat Hostiles 11 | . . . . . . . . . . . . . . . . . . . . . . . . . . . . 11 Parts Fried 36 | . . . . . . . . 4 . . . . . 1 . . . 4 . . . . . . . . . 27 Impact Corruptions 2 | . . . . . . . . . . . . . . . . . . . . . . 1 . . . . . 1 Robots Melted 55 | . . . . . . . . . . . 1 1 . . . . . 6 8 . . 1 2 2 . . . 34 Combat Hostiles 54 | . . . . . . . . . . . 1 1 . . . . . 6 8 . . 1 2 2 . . . 33 Parts Melted 155 | . . . . 2 . . 5 . . . 9 4 . . . . . 28 26 . . 3 18 6 . 2 . 52 Heat Transferred 68559 | . . . 814 518 . . 2990 . . . 3169 1816 350 . . . . 4530 6575 . . 1578 2944 1820 . 646 581 40228 Parts Sabotaged . | . . . . . . . . . . . . . . . . . . . . . . . . . . . . . Parts Stolen . | . . . . . . . . . . . . . . . . . . . . . . . . . . . . . Parts Stripped . | . . . . . . . . . . . . . . . . . . . . . . . . . . . . . Power Chain Reactions 5 | . . . . . . . 1 1 . . . . . 1 . . . 1 . . . . . . . . . 1 Alert | -11 -10 -10 -9 -9 -9 -9 -6 -6 -6 -6 -6 -5 -5 -5 -5 -5 -4 -4 -4 -4 -4 -4 -3 -3 -3 -2 -2 -2 ------- Run | Yrd Mat Min Mat Sto Rec Scr Fac Low Low Zio Dee Pro Fac Upp Upp War Pro Fac Ext Cet Arc Hub Res Arm Lab Res Qua Frg Maximum Alert Level 5 | . . . . 2 1 . 3 . . . . . 3 . . . . 2 4 3 2 4 3 3 . . . 5 Low Security (%) 41 | 100 100 100 100 38 95 . 27 . . . . . 67 . . . . 44 . . 33 7 . . . 100 100 3 Level 1 14 | . . . . 27 4 . 25 . . . . . 3 . . . . 46 47 . 39 1 . 25 . . . 6 Level 2 16 | . . . . 34 . . 22 . . . . . 10 . . . . 9 43 . 27 40 23 69 . . . 6 Level 3 11 | . . . . . . . 25 . . . . . 18 . . . . . 2 100 . 20 76 4 . . . 6 Level 4 5 | . . . . . . . . . . . . . . . . . . . 6 . . 30 . . . . . 19 Level 5 10 | . . . . . . . . . . . . . . . . . . . . . . . . . . . . 57 High Security . | . . . . . . . . . . . . . . . . . . . . . . . . . . . . . Max Security . | . . . . . . . . . . . . . . . . . . . . . . . . . . . . . Peak Influence 7818 | 10 198 111 114 573 217 . 1043 . . . . . 887 . . . . 506 1343 858 522 1322 931 774 . 110 116 7818 Initial 748 | . 3 41 . 17 217 . . . . . . . . . . . . . 245 748 301 28 677 480 . . 61 . Average 801 | 1 97 24 69 301 83 . 471 . . . . . 291 . . . . 225 471 799 289 796 772 508 . 46 66 3033 Influence Increases 23183 | 35 533 206 574 1373 235 . 1925 195 90 . . 115 1426 300 5 158 60 880 1657 397 309 1946 582 650 . 399 200 8933 Destroy 0b10 Robot/C 12140 | . 340 160 360 880 80 . 1040 160 80 . . 80 640 300 . 120 60 440 760 160 80 780 140 260 . 40 . 5180 Destroy 0b10 Robot/NC 615 | 35 10 . 40 50 5 . 45 5 . . . . 40 . 5 . . 45 40 10 30 45 10 5 . 5 10 180 Destroy Leader 2066 | . 62 30 86 216 . . 252 30 10 . . 20 120 . . . . 90 94 . . 188 52 72 . 20 2 722 Allied During Kill 1473 | . . 1 . 115 . . . . . . . . . . . 38 . . 506 170 110 444 . 71 . . . 18 Successful Hack 636 | . 30 . 19 38 29 . 14 . . . . . 16 . . . . . 56 . . . 189 37 . 61 107 40 Select Force Hacks 150 | . 30 . . . 120 . . . . . . . . . . . . . . . . . . . . . . . Disable Machine 2100 | . . . . 30 . . 450 . . . . . 315 . . . . 90 75 15 45 255 15 120 . 30 30 630 Anti-Garrison Action 150 | . . . . . . . . . . . . . . . . . . . . . . . . . . . . 150 Destroy Structure 2443 | . 1 . 9 14 1 . 94 . . . . . 250 . . . . 140 66 42 44 174 56 40 . 78 21 1413 Partial Spotted 90 | . . . . . . . 15 . . . . . . . . . . . . . . . . . . 60 15 . Lose Combat Pursuer 1320 | . 60 15 60 30 . . 15 . . . . 15 45 . . . . 75 60 . . 60 120 45 . 105 15 600 Influence Decreases 15371 | 30 431 313 532 858 792 . 918 984 245 63 . 115 539 997 195 70 148 380 820 981 982 736 957 1307 258 289 310 1121 Entered New Map 4069 | . 2 66 . 25 340 . . 374 42 63 . . . 329 37 . 88 . 255 589 452 52 613 435 258 . 49 . Time Decay 9084 | 30 409 227 472 583 442 . 608 610 203 . . 115 469 658 158 20 60 350 565 262 530 434 334 302 . 221 261 761 Lost Part 940 | . 20 20 60 30 10 . 310 . . . . . 70 10 . . . . . 10 . 30 10 . . . . 360 Lost Ally 770 | . . . . 220 . . . . . . . . . . . 50 . 30 . 120 . 220 . 120 . 10 . . Purge Threat 508 | . . . . . . . . . . . . . . . . . . . . . . . . 450 . 58 . . Squads Dispatched 106 | . 4 . 2 7 . . 17 . . . . . 10 . . . . 8 2 . . 14 8 4 . 8 2 20 Investigation 33 | . 2 . . 1 . . 5 . . . . . 2 . . . . 4 1 . . 1 6 2 . 6 . 3 Extermination 22 | . . . . . . . 5 . . . . . 4 . . . . 2 . . . 2 . 1 . 1 2 5 Reinforcement 26 | . 2 . 2 1 . . 6 . . . . . 1 . . . . 2 . . . 5 2 1 . 1 . 3 Assault 22 | . . . . 5 . . 1 . . . . . 3 . . . . . 1 . . 3 . . . . . 9 Garrison 3 | . . . . . . . . . . . . . . . . . . . . . . 3 . . . . . . Intercept . | . . . . . . . . . . . . . . . . . . . . . . . . . . . . . Searches Triggered . | . . . . . . . . . . . . . . . . . . . . . . . . . . . . . Unchained Authorized 2 | . . . . . . . . . . . . . . . . . . . . . . . . . . 1 1 . Construction Impeded 2 | . . . . . . . 1 . . . . . 1 . . . . . . . . . . . . . . . Haulers Reinforced 1 | . . . . . . . . . . . . . . . . . . . . . . . 1 . . . . . Active Scanning Responses . | . . . . . . . . . . . . . . . . . . . . . . . . . . . . . Cargo Convoy Interrupts . | . . . . . . . . . . . . . . . . . . . . . . . . . . . . . Stealth | -11 -10 -10 -9 -9 -9 -9 -6 -6 -6 -6 -6 -5 -5 -5 -5 -5 -4 -4 -4 -4 -4 -4 -3 -3 -3 -2 -2 -2 --------- Run | Yrd Mat Min Mat Sto Rec Scr Fac Low Low Zio Dee Pro Fac Upp Upp War Pro Fac Ext Cet Arc Hub Res Arm Lab Res Qua Frg Distress Signals 41 | . 2 . 3 2 . . 1 . . . . 1 . . . 1 . 6 1 2 . 3 9 3 . 2 . 5 Communications Jammed 30 | . . . . . . . . . . . . . . . . . . . . . . 16 . . . 14 . . Distress Signals 30 | . . . . . . . . . . . . . . . . . . . . . . 16 . . . 14 . . Times Spotted 869 | . 32 9 37 46 4 . 59 6 4 . 24 8 39 14 . 12 3 28 46 10 11 54 19 11 . 38 5 350 Peak Tracking Total 17 | . 5 3 5 8 1 . 5 4 4 . 5 5 7 9 . 5 2 6 6 5 2 9 6 4 . 13 2 17 Tactical Retreats 58 | . 4 1 4 2 . . 1 . . . . 1 2 . . . . 4 1 . . 3 4 1 . 7 1 22 ECM-based Alert Blocks 10 | . . . . . . . . . . . . . . . . . . . . . . . . . . 10 . . Traps | -11 -10 -10 -9 -9 -9 -9 -6 -6 -6 -6 -6 -5 -5 -5 -5 -5 -4 -4 -4 -4 -4 -4 -3 -3 -3 -2 -2 -2 ------- Run | Yrd Mat Min Mat Sto Rec Scr Fac Low Low Zio Dee Pro Fac Upp Upp War Pro Fac Ext Cet Arc Hub Res Arm Lab Res Qua Frg Traps Triggered 30 | . 3 . 3 3 . . 1 . . . . . 1 . 1 . . . 1 . . . 3 1 . 2 1 10 Indirectly . | . . . . . . . . . . . . . . . . . . . . . . . . . . . . . Trap Hack Attempts . | . . . . . . . . . . . . . . . . . . . . . . . . . . . . . Triggered . | . . . . . . . . . . . . . . . . . . . . . . . . . . . . . Disarmed . | . . . . . . . . . . . . . . . . . . . . . . . . . . . . . Reprogrammed . | . . . . . . . . . . . . . . . . . . . . . . . . . . . . . Reused . | . . . . . . . . . . . . . . . . . . . . . . . . . . . . . Traps Extracted . | . . . . . . . . . . . . . . . . . . . . . . . . . . . . . Installed . | . . . . . . . . . . . . . . . . . . . . . . . . . . . . . Triggered . | . . . . . . . . . . . . . . . . . . . . . . . . . . . . . Machines | -11 -10 -10 -9 -9 -9 -9 -6 -6 -6 -6 -6 -5 -5 -5 -5 -5 -4 -4 -4 -4 -4 -4 -3 -3 -3 -2 -2 -2 ---------- Run | Yrd Mat Min Mat Sto Rec Scr Fac Low Low Zio Dee Pro Fac Upp Upp War Pro Fac Ext Cet Arc Hub Res Arm Lab Res Qua Frg Machines Disabled 160 | . . . . 2 . . 30 . . 3 2 . 21 1 . 1 . 6 6 1 3 17 1 8 1 2 2 53 Max in Single Turn 20 | . . . . 1 . . 20 . . 1 1 . 9 1 . 1 . 4 1 1 1 2 1 1 1 1 1 3 Garrison Access 8 | . . . . 1 . . . . . . . . . . . . . . . . . 1 1 . . 4 . 1 Network Hub 2 | . . . . . . . . . . . . . . . . . . . . . . 2 . . . . . . Machines Repaired . | . . . . . . . . . . . . . . . . . . . . . . . . . . . . . Machines Dismantled 3 | . . . . . . . . . . 3 . . . . . . . . . . . . . . . . . . Machines Sabotaged . | . . . . . . . . . . . . . . . . . . . . . . . . . . . . . Overloaded Fab Kills . | . . . . . . . . . . . . . . . . . . . . . . . . . . . . . Hacking | -11 -10 -10 -9 -9 -9 -9 -6 -6 -6 -6 -6 -5 -5 -5 -5 -5 -4 -4 -4 -4 -4 -4 -3 -3 -3 -2 -2 -2 --------- Run | Yrd Mat Min Mat Sto Rec Scr Fac Low Low Zio Dee Pro Fac Upp Upp War Pro Fac Ext Cet Arc Hub Res Arm Lab Res Qua Frg Machines Accessed 158 | . 8 . 7 10 10 4 12 1 1 . . 1 11 3 1 7 . 5 10 . . 7 13 8 . 21 9 9 Terminals 87 | . 7 . 5 9 6 . 4 . . . . 1 8 . . . . 1 9 . . 6 6 3 . 10 7 5 Fabricators 8 | . . . . . . . 1 . . . . . 2 . . . . . . . . . 2 3 . . . . Repair Stations 2 | . . . . . . . . . . . . . . . . . . . . . . . . . . 1 1 . Recycling Units 28 | . 1 . . . 4 . 5 . . . . . 1 . . . . 4 1 . . . 2 2 . 5 . 3 Scanalyzers 8 | . . . 2 . . . 2 . . . . . . . . . . . . . . . 2 . . 1 1 . Garrison Access 8 | . . . . 1 . . . . . . . . . . . . . . . . . 1 1 . . 4 . 1 Total Hacks 421 | . 22 . 26 24 28 23 24 1 1 . . 1 22 6 1 12 . 7 24 . . 16 53 19 . 66 27 18 Successful 231 | . 14 . 15 14 16 23 10 1 1 . . 1 7 6 1 12 . 5 7 . . . 22 13 . 41 17 5 Failed 187 | . 8 . 10 10 12 . 14 . . . . . 15 . . . . 2 17 . . 16 30 6 . 24 10 13 Catastrophic 31 | . 3 . . 1 . . 2 . . . . . 5 . . . . . 2 . . 3 4 2 . 2 2 5 Database Lockouts 3 | . . . 1 . . . . . . . . . . . . . . . . . . . 1 . . 1 . . Manual 233 | . 23 . 16 14 21 . 15 . . 1 . . 6 . . . . 5 19 1 . 7 32 6 . 44 12 11 Terminals 268 | . 21 . 22 23 23 . 8 . . . . 1 14 . . . . 2 21 . . 15 29 10 . 46 22 11 Fabricators 21 | . . . . . . . 4 . . . . . 6 . . . . . . . . . 5 6 . . . . Repair Stations 5 | . . . . . . . . . . . . . . . . . . . . . . . . . . 2 3 . Recycling Units 47 | . 1 . . . 5 . 8 . . . . . 2 . . . . 5 3 . . . 6 3 . 8 . 6 Scanalyzers 26 | . . . 4 . . . 4 . . . . . . . . . . . . . . . 11 . . 5 2 . Garrison Access 10 | . . . . 1 . . . . . . . . . . . . . . . . . 1 2 . . 5 . 1 Terminal Hacks 91 | . 2 . 5 5 4 23 2 1 1 . . 1 1 6 1 12 . 1 1 . . . 1 5 . 10 6 3 Record 36 | . . . 1 . . 23 . . . . . 1 . 4 . 5 . . . . . . . . . 1 1 . Part Schematic 4 | . 1 . . . 2 . . . . . . . . . . . . . . . . . 1 . . . . . Robot Schematic 1 | . 1 . . . . . . . . . . . . . . . . . . . . . . . . . . . Robot Analysis 5 | . . . 3 . 1 . . . . . . . . . . . . . . . . . . . . 1 . . Prototype ID Bank 8 | . . . . . . . . . . . . . . . . 6 . . . . . . . . . . 2 . Open Door 11 | . . . . 3 . . . 1 1 . . . . 2 1 1 . . 1 . . . . 1 . . . . Branch Access Points 3 | . . . . . . . 1 . . . . . . . . . . 1 . . . . . . . 1 . . Terminal Index 2 | . . . . . 1 . . . . . . . . . . . . . . . . . . . . . 1 . Recycling Unit Index 1 | . . . . . . . . . . . . . 1 . . . . . . . . . . . . . . . Unreport Threat 4 | . . . . . . . . . . . . . . . . . . . . . . . . 3 . 1 . . Locate Traps 7 | . . . 1 1 . . 1 . . . . . . . . . . . . . . . . 1 . 2 1 . Extermination Status 1 | . . . . . . . . . . . . . . . . . . . . . . . . . . 1 . . Recall Extermination 2 | . . . . . . . . . . . . . . . . . . . . . . . . . . 1 1 . Zone Layout 5 | . . . . 1 . . . . . . . . . . . . . . . . . . . . . 2 . 2 Proto ID Catalog 1 | . . . . . . . . . . . . . . . . . . . . . . . . . . . . 1 Fabricator Hacks 14 | . . . . . . . 1 . . . . . 5 . . . . . . . . . 3 5 . . . . Load Schematic 7 | . . . . . . . 1 . . . . . 3 . . . . . . . . . 1 2 . . . . Build 7 | . . . . . . . . . . . . . 2 . . . . . . . . . 2 3 . . . . Repair Station Hacks 4 | . . . . . . . . . . . . . . . . . . . . . . . . . . 2 2 . Scan Component 2 | . . . . . . . . . . . . . . . . . . . . . . . . . . 1 1 . Repair 2 | . . . . . . . . . . . . . . . . . . . . . . . . . . 1 1 . Recycling Unit Hacks . | . . . . . . . . . . . . . . . . . . . . . . . . . . . . . Scanalyzer 12 | . . . 2 . . . . . . . . . . . . . . . . . . . 5 . . 4 1 . Insert Component 6 | . . . . . . . . . . . . . . . . . . . . . . . 4 . . 2 . . Retrieve Study 6 | . . . 2 . . . . . . . . . . . . . . . . . . . 1 . . 2 1 . Garrison Access Hacks 6 | . . . . 1 . . . . . . . . . . . . . . . . . . 1 . . 4 . . Seal Access 6 | . . . . 1 . . . . . . . . . . . . . . . . . . 1 . . 4 . . Unauthorized Hacks 103 | . 12 . 8 8 12 . 7 . . . . . 1 . . . . 4 6 . . . 12 3 . 20 8 2 Terminals 74 | . 11 . 8 8 8 . 1 . . . . . . . . . . . 6 . . . 9 . . 15 7 1 Track 6 | . . . . . . . . . . . . . . . . . . . 1 . . . . . . 3 1 1 Assimilate 3 | . . . . . . . . . . . . . . . . . . . . . . . . . . 3 . . Botnet 19 | . 3 . 3 2 3 . . . . . . . . . . . . . . . . . 4 . . 3 1 . Operators 3 | . 2 . . . . . . . . . . . . . . . . . . . . . . . . 1 . . Skim 43 | . 6 . 5 6 5 . 1 . . . . . . . . . . . 5 . . . 5 . . 5 5 . Fabricators 3 | . . . . . . . 1 . . . . . . . . . . . . . . . 1 1 . . . . Prioritize 3 | . . . . . . . 1 . . . . . . . . . . . . . . . 1 1 . . . . Repair Stations . | . . . . . . . . . . . . . . . . . . . . . . . . . . . . . Recycling Units 25 | . 1 . . . 4 . 5 . . . . . 1 . . . . 4 . . . . 2 2 . 5 . 1 Tunnel 5 | . 1 . . . 4 . . . . . . . . . . . . . . . . . . . . . . . Fedlink 20 | . . . . . . . 5 . . . . . 1 . . . . 4 . . . . 2 2 . 5 . 1 Scanalyzers 1 | . . . . . . . . . . . . . . . . . . . . . . . . . . . 1 . Researchers 1 | . . . . . . . . . . . . . . . . . . . . . . . . . . . 1 . Garrison Access . | . . . . . . . . . . . . . . . . . . . . . . . . . . . . . Data Cores Recovered . | . . . . . . . . . . . . . . . . . . . . . . . . . . . . . Used . | . . . . . . . . . . . . . . . . . . . . . . . . . . . . . Hacking Detections 95 | . 7 . 7 7 6 . 9 . . . . . 10 . . . . 2 9 . . 7 8 2 . 11 5 5 Full Trace Events 6 | . . . . 1 . . . . . . . . 1 . . . . . 1 . . 1 1 . . . . 1 Feedback Events . | . . . . . . . . . . . . . . . . . . . . . . . . . . . . . Feedback Blocked . | . . . . . . . . . . . . . . . . . . . . . . . . . . . . . Robot Schematics Acquired 3 | . 1 . . . . . . . . 2 . . . . . . . . . . . . . . . . . . Robots Built . | . . . . . . . . . . . . . . . . . . . . . . . . . . . . . Authchips . | . . . . . . . . . . . . . . . . . . . . . . . . . . . . . Time . | . . . . . . . . . . . . . . . . . . . . . . . . . . . . . Total Robot Build Rating . | . . . . . . . . . . . . . . . . . . . . . . . . . . . . . Part Schematics Acquired 20 | . 1 . . . 2 . . . . 14 . . . . . . . . . . . . 1 . . . . 2 Parts Built 12 | . . . . . . . . . . . . . 2 . . . . . . . . . 4 6 . . . . Authchips 4 | . . . . . . . . . . . . . 2 . . . . . . . . . . 2 . . . . Time 296 | . . . . . . . . . . . . . 70 . . . . . . . . . 65 161 . . . . Total Part Build Rating 100 | . . . . . . . . . . . . . 12 . . . . . . . . . 34 54 . . . . Part Studies Acquired 6 | . . . 2 . . . . . . . . . . . . . . . . . . . 1 . . 2 1 . Parts Repaired 2 | . . . . . . . . . . . . . . . . . . . . . . . . . . 1 1 . Time 90 | . . . . . . . . . . . . . . . . . . . . . . . . . . 36 54 . Parts Recycled . | . . . . . . . . . . . . . . . . . . . . . . . . . . . . . Recycled Matter . | . . . . . . . . . . . . . . . . . . . . . . . . . . . . . Retrieved Matter . | . . . . . . . . . . . . . . . . . . . . . . . . . . . . . Retrieved Components . | . . . . . . . . . . . . . . . . . . . . . . . . . . . . . Parts Scanalyzed . | . . . . . . . . . . . . . . . . . . . . . . . . . . . . . Part Schematics Acquired . | . . . . . . . . . . . . . . . . . . . . . . . . . . . . . Parts Damaged . | . . . . . . . . . . . . . . . . . . . . . . . . . . . . . Bothacking | -11 -10 -10 -9 -9 -9 -9 -6 -6 -6 -6 -6 -5 -5 -5 -5 -5 -4 -4 -4 -4 -4 -4 -3 -3 -3 -2 -2 -2 ------------ Run | Yrd Mat Min Mat Sto Rec Scr Fac Low Low Zio Dee Pro Fac Upp Upp War Pro Fac Ext Cet Arc Hub Res Arm Lab Res Qua Frg Used RIF Installer . | . . . . . . . . . . . . . . . . . . . . . . . . . . . . . Robots Hacked 2 | . . . . . . . 2 . . . . . . . . . . . . . . . . . . . . . Non-combat 2 | . . . . . . . 2 . . . . . . . . . . . . . . . . . . . . . Combat . | . . . . . . . . . . . . . . . . . . . . . . . . . . . . . Robot Hacks Applied 2 | . . . . . . . 2 . . . . . . . . . . . . . . . . . . . . . find_chute 2 | . . . . . . . 2 . . . . . . . . . . . . . . . . . . . . . Relay Couplers Released 4 | . . . . . . . . . . . . . . . . . . . . . . 3 . . . . . 1 Machine Destruction 4 | . . . . . . . . . . . . . . . . . . . . . . 3 . . . . . 1 Fabnet Peak Effective % . | . . . . . . . . . . . . . . . . . . . . . . . . . . . . . Robots Rewired 23 | . . . . . . . . . . . . . . 2 . 5 . . 10 . . . . 6 . . . . Allies Hacked . | . . . . . . . . . . . . . . . . . . . . . . . . . . . . . Hacks Repelled . | . . . . . . . . . . . . . . . . . . . . . . . . . . . . . Allies | -11 -10 -10 -9 -9 -9 -9 -6 -6 -6 -6 -6 -5 -5 -5 -5 -5 -4 -4 -4 -4 -4 -4 -3 -3 -3 -2 -2 -2 -------- Run | Yrd Mat Min Mat Sto Rec Scr Fac Low Low Zio Dee Pro Fac Upp Upp War Pro Fac Ext Cet Arc Hub Res Arm Lab Res Qua Frg Total Allies 53 | . . 1 . 12 . . . . . 5 . . . 2 . 5 . . 16 5 . . . 6 . 1 . . Largest Group 18 | . . 1 1 10 . . . . . 5 5 . . 2 2 5 1 1 16 18 12 8 . 6 . 1 . . Highest-Rated Group 1171 | . . 31 31 88 . . . . . 274 274 . . 60 60 266 64 64 814 1171 693 525 . 372 . 45 . . Highest-Rated Ally 159 | . . 31 31 31 . . . . . 96 96 . . 30 30 64 64 64 159 159 96 96 . 68 . 45 . . Total Orders 46 | . . . . . . . 3 . . . . . . . . 22 2 8 . . 2 9 . . . . . . STAY 13 | . . . . . . . . . . . . . . . . 6 1 . . . 1 5 . . . . . . FOLLOW 3 | . . . . . . . . . . . . . . . . 1 1 . . . 1 . . . . . . . EXPLORE 17 | . . . . . . . 3 . . . . . . . . 6 . 6 . . . 2 . . . . . . RETURN 13 | . . . . . . . . . . . . . . . . 9 . 2 . . . 2 . . . . . . Ally Attacks 451 | . . 1 . 98 . . . . . . 75 . . . 1 20 . . 23 57 41 99 . 34 . . . 2 Total Damage 12115 | . . 21 . 1135 . . . . . . 1702 . . . 63 672 . . 810 1443 1134 3099 . 1885 . . . 151 Kills 75 | . . 1 . 15 . . . . . . 11 . . . . 4 . . 6 7 3 17 . 9 . . . 2 Allies Corrupted 3 | . . . . . . . . . . . . . . . . . . . . . . 2 . . . . . 1 Allies Melted 1 | . . . . . . . . . . . . . . . 1 . . . . . . . . . . . . . Intel | -11 -10 -10 -9 -9 -9 -9 -6 -6 -6 -6 -6 -5 -5 -5 -5 -5 -4 -4 -4 -4 -4 -4 -3 -3 -3 -2 -2 -2 ------- Run | Yrd Mat Min Mat Sto Rec Scr Fac Low Low Zio Dee Pro Fac Upp Upp War Pro Fac Ext Cet Arc Hub Res Arm Lab Res Qua Frg Active Infowar (turns) 25413 | . 442 314 . . . 75 723 1997 1762 2257 452 2033 1992 2419 2201 847 2611 366 46 . . 550 550 467 106 356 493 2354 Optics 2133 | . . . . . . 60 . . . . . . . . . . . . . . . . . . . . . 2073 Sensors 14649 | . . 1 . . . . 14 . . 328 254 1982 1500 2419 2196 847 2611 366 46 . . 420 518 429 106 205 377 30 A.S.S. 5690 | . . . . . . . 2 1997 1762 1929 . . . . . . . . . . . . . . . . . . Terrain 1735 | . . . . . . . 702 . . . . . . . 5 . . . . . . . 229 225 . 234 307 33 Traps 16 | . . . . . . 15 . . . . . . . 1 . . . . . . . . . . . . . . Seismic 757 | . 442 313 . . . . . . . . . . . . . . . . . . . . 2 . . . . . T.N.C. 1 | . . . . . . . . . . . . . . . . . . . . . . . 1 . . . . . Machine Analysis 649 | . . . . . . . . . . . . . 649 . . . . . . . . . . . . . . . Triangulation 2 | . . . . . . . . . . . . . . . . . . . . . . 2 . . . . . . Cloaking 1791 | . . . . . . . . . . . 198 51 1308 . . . . . . . . . . . . . . 234 Jamming 670 | . . . . . . . 19 . . . . . . . . . . . . . . 324 58 68 . 59 124 18 ECM 73 | . . . . . . . . . . . . . . . . . . . . . . . . . . 73 . . Robot Analysis Total 5 | . . . 3 . 1 . . . . . . . . . . . . . . . . . . . . 1 . . Derelict Logs Recovered 15 | . . 2 . . . . . 2 2 1 . 1 . 2 3 . 2 . . . . . . . . . . . Drone Launches 38 | . . . . . . . 3 . . . . . . . . 8 . 6 . . . 9 . . . . . 12 Drone Recoveries 16 | . . . . . . . 1 . . . . . . . . 8 . 4 . . . 3 . . . . . . Exploration | -11 -10 -10 -9 -9 -9 -9 -6 -6 -6 -6 -6 -5 -5 -5 -5 -5 -4 -4 -4 -4 -4 -4 -3 -3 -3 -2 -2 -2 ------------- Run | Yrd Mat Min Mat Sto Rec Scr Fac Low Low Zio Dee Pro Fac Upp Upp War Pro Fac Ext Cet Arc Hub Res Arm Lab Res Qua Frg Turns Passed 49009 | 235 1448 766 1258 1814 1329 3066 2474 1997 1762 3135 3960 2326 2196 2477 2219 1288 2697 889 1683 570 1494 1070 754 671 149 515 565 4202 Spaces Moved 24817 | 102 628 420 486 611 484 1966 888 839 731 1283 1486 894 732 1110 907 575 1081 328 734 232 260 473 985 698 141 938 739 4066 Core 3 | 3 . . . . . . . . . . . . . . . . . . . . . . . . . . . . Treads 15338 | 99 628 420 486 611 484 409 535 839 731 1283 1486 894 732 1110 907 575 1081 328 734 232 260 473 1 . . . . . Legs . | . . . . . . . . . . . . . . . . . . . . . . . . . . . . . Wheels 1910 | . . . . . . 1557 353 . . . . . . . . . . . . . . . . . . . . . Hover 7566 | . . . . . . . . . . . . . . . . . . . . . . . 984 698 141 938 739 4066 Flight . | . . . . . . . . . . . . . . . . . . . . . . . . . . . . . Fastest Speed 18 | 50 160 160 160 200 200 123 145 232 232 232 167 247 160 160 160 160 240 165 165 165 163 160 20 20 20 18 20 20 Average Speed 151 | 156 160 160 175 200 200 152 192 232 232 232 238 247 246 207 239 183 245 165 165 169 164 160 30 24 30 26 33 31 Slowest Speed 320 | 160 160 160 240 200 200 200 240 232 232 237 250 247 250 240 240 320 320 165 165 246 165 240 160 88 32 29 38 118 Overloaded Moves 35 | . . . . . . . . . . . . . . . . . . . . . . . . . . 25 . 10 Propulsion Burnouts . | . . . . . . . . . . . . . . . . . . . . . . . . . . . . . Robots Hopped . | . . . . . . . . . . . . . . . . . . . . . . . . . . . . . Potential Cave-ins 17 | . . . . . . . . . . . . . . . . . . 3 . . . 2 . . . . . 12 Cave-ins Triggered 1 | . . . . . . . . . . . . . . . . . . . . . . 1 . . . . . . Teleports 1 | . . . . . . . . . . . . . . . . . . . . . . . . . . . . 1 Exploration Rate (%) 70 | 6 96 84 49 88 93 95 34 94 90 88 85 97 30 90 87 94 90 18 88 74 84 59 31 36 70 41 63 82 Regions Visited 28 Branch Regions 21 Pre-discovered Areas 21 | . 3 . 3 . 4 2 1 1 . 2 . 1 . . 2 . 1 . . . . . . . . . 1 . Known Exits Taken 22 | . . 1 1 . 1 . 1 1 1 . . 1 1 1 1 1 1 1 1 1 1 1 1 1 1 1 1 . Unknown Exits Taken 6 | 1 1 . . 1 . 1 . . . 1 1 . . . . . . . . . . . . . . . . . Scrap Searched 24 | . . 1 . . . 7 . . 4 2 . 2 . 4 2 . 2 . . . . . . . . . . . Spaces Dug 242 | . . . 8 8 . . 1 11 . . 24 . 32 3 . . . 15 2 . . 5 22 18 . 23 5 65 Terrain Destroyed 1359 | . . . 8 8 . . 119 44 27 . 73 . 128 86 4 5 7 71 47 26 32 72 28 20 . 27 6 521 Melee . | . . . . . . . . . . . . . . . . . . . . . . . . . . . . . Projectile 784 | . . . . 1 . . 9 5 2 . 73 . 71 31 4 5 7 25 47 26 32 72 28 20 . 27 6 293 AOE 574 | . . . 8 7 . . 110 39 25 . . . 57 55 . . . 46 . . . . . . . . . 227 Terrain Rammed . | . . . . . . . . . . . . . . . . . . . . . . . . . . . . . Walls Destroyed . | . . . . . . . . . . . . . . . . . . . . . . . . . . . . . Machines Disabled . | . . . . . . . . . . . . . . . . . . . . . . . . . . . . . Actions | -11 -10 -10 -9 -9 -9 -9 -6 -6 -6 -6 -6 -5 -5 -5 -5 -5 -4 -4 -4 -4 -4 -4 -3 -3 -3 -2 -2 -2 --------- Run | Yrd Mat Min Mat Sto Rec Scr Fac Low Low Zio Dee Pro Fac Upp Upp War Pro Fac Ext Cet Arc Hub Res Arm Lab Res Qua Frg Total 33575 | 139 966 470 740 1037 818 2037 1317 867 796 1378 1771 970 960 1221 939 794 1111 550 1083 374 1273 644 1348 1118 243 1135 1026 6450 Wait 4301 | . 250 18 108 252 306 3 95 3 31 28 12 30 34 6 . 25 8 73 123 63 971 29 162 206 68 101 219 1077 Move 24787 | 101 627 419 485 610 483 1965 887 838 730 1282 1485 893 731 1109 906 574 1080 327 733 231 259 471 984 697 140 937 738 4065 Hop . | . . . . . . . . . . . . . . . . . . . . . . . . . . . . . Pick Up 573 | 10 17 3 27 19 3 23 53 4 7 7 47 5 26 10 2 13 . 14 4 9 . 10 21 23 13 7 11 185 Fast Attach 281 | 7 1 2 5 9 1 12 16 . 5 6 25 3 10 6 7 26 6 4 11 17 10 6 14 9 . 2 1 60 Attach 193 | . 1 4 6 . 1 3 39 . 4 4 6 2 11 2 . 5 . 3 3 2 . 4 9 9 3 2 4 66 Detach 18 | . . 1 . . 1 1 . . . 1 . . 2 . 1 1 . . . 1 . . . . . . . 9 Swap 573 | . 2 . 15 21 3 4 38 6 4 12 19 14 21 12 3 12 4 22 22 4 . 39 45 43 4 42 18 144 Drop 696 | 2 12 1 17 28 4 26 40 2 12 10 71 7 29 13 10 39 6 18 16 25 9 15 33 25 10 5 14 197 Fire 1731 | 19 56 22 74 88 14 . 146 14 3 1 106 15 95 28 10 8 7 81 70 22 24 65 54 50 5 39 18 597 Melee . | . . . . . . . . . . . . . . . . . . . . . . . . . . . . . Ram . | . . . . . . . . . . . . . . . . . . . . . . . . . . . . . Kick . | . . . . . . . . . . . . . . . . . . . . . . . . . . . . . Crush 19 | . . . 3 4 2 . 1 . . . . . 1 . . . . 6 . . . 2 . . . . . . Escape Stasis 87 | . . . . 6 . . 2 . . . . . . . . . . . . . . 1 26 . . . 3 49 Rewire 285 | . . . . . . . . . . . . . . 35 . 91 . 2 101 . . . . 56 . . . . Trap . | . . . . . . . . . . . . . . . . . . . . . . . . . . . . . Miscellaneous 31 | . . . . . . . . . . 27 . 1 . . . . . . . . . 2 . . . . . 1 Route ------- -11/Scrapyard -10/Materials (discovered 4 exits: *Mat x3 / [*Min]) -10/Mines (discovered 2 exits: *Mat x2) -9/Materials (discovered 6 exits: *Mat x3 / *Min x2 / *Sto) -9/Storage (discovered 2 exits: *Mat / *Rec) -9/Recycling (discovered 2 exits: [*Fac] / *Scr) -9/Scraptown (discovered 2 exits: *Fac x2) -6/Factory (discovered 4 exits: *Fac x2 / *Low x2) -6/Lower Caves -6/Lower Caves (discovered 2 exits: *Fac / *Zio) -6/Zion (discovered 2 exits: [*Dee] / [*Pro]) -6/Deep Caves -5/Proximity Caves -5/Factory -5/Upper Caves -5/Upper Caves (discovered 2 exits: *Fac / *War) -5/Warlord -4/Proximity Caves -4/Factory (discovered 5 exits: *Res / *Upp x2 / *Ext x2) -4/Extension (discovered 3 exits: *Res x2 / *Cet) -4/Cetus (discovered 2 exits: *Res / *Arc) -4/Archives (discovered 3 exits: *Res / *Hub x2) -4/Hub_04(d) (discovered 2 exits: *Res x2) -3/Research (discovered 2 exits: *Arm / *Tes) -3/Armory (discovered 3 exits: Res x2 / *Lab) -3/Lab -2/Research (discovered 5 exits: *Acc x3 / *Qua x2) -2/Quarantine (discovered 3 exits: *Acc / [*Sec] / *Frg) -2/Protoforge 0bPrime History --------- Turn | Location | Event 8 | -11/Scrapyard | Discovered new exit (range 14) 236 | -11/Scrapyard | Entered Materials 303 | -10/Materials | Build established: Mutant 786 | -10/Materials | Discovered new exit (range 7) 825 | -10/Materials | Discovered new exit (range 8) 1082 | -10/Materials | Discovered new exit (range 10) 1212 | -10/Materials | Discovered new exit (range 4) 1485 | -10/Materials | Learned location of Recycling (-9) 1570 | -10/Materials | Learned Storage stockpile data 1684 | -10/Materials | Entered Mines 1685 | -10/Mines | Identified exit to Materials 1795 | -10/Mines | Assembled infested the area 1828 | -10/Mines | Met 8R-AWN 1947 | -10/Mines | Lost 3 parts (1p2n) 2080 | -10/Mines | Found DCF Scrap (14 items) 2104 | -10/Mines | Core integrity fell below 50% 2148 | -10/Mines | Learned Materials machine intel 2206 | -10/Mines | Received a Mining Laser from a helpful Derelict 2292 | -10/Mines | Found a damaged Exp. Sensor Array with a note attached 2296 | -10/Mines | Found Prototype Device 2297 | -10/Mines | Identified Exp. Sensor Array 2450 | -10/Mines | Entered Materials 2450 | -9/Materials | Accompanied by 1 ally 2450 | -9/Materials | Evolved 2 slots: Propulsion x1, Utility x1 2451 | -9/Materials | Identified exit to Materials 2451 | -9/Materials | Identified exit to Mines 2451 | -9/Materials | Identified exit to Storage 2452 | -9/Materials | Loaded intel: 57 machine locations 3049 | -9/Materials | Central database locked down 3437 | -9/Materials | Build established: Scavenger-Mutant 3529 | -9/Materials | Loaded intel: 15 trap records 3560 | -9/Materials | Learned 2 Storage zone layouts 3591 | -9/Materials | Learned location of Zion (-6) 3645 | -9/Materials | Learned Storage trap positions 3708 | -9/Materials | Entered Storage 3711 | -9/Storage | Loaded intel: 15 trap records 4257 | -9/Storage | Met a pair of Derelict thieves 4623 | -9/Storage | Used back door to open Recycling access 4623 | -9/Storage | Discovered new exit (range 5) 4729 | -9/Storage | Core integrity fell below 50% 4768 | -9/Storage | Build established: Mutant 4843 | -9/Storage | Assisted by bots powering up and referring to "LRC-V3" 4908 | -9/Storage | First assault squad dispatched 5145 | -9/Storage | Build established: Commander-Mutant 5252 | -9/Storage | Learned Materials emergency access door positions 5307 | -9/Storage | Learned 4 Recycling zone layouts 5352 | -9/Storage | Learned 4 Recycling zone layouts 5387 | -9/Storage | Learned Materials emergency access door positions 5412 | -9/Storage | Learned Storage stockpile data 5425 | -9/Storage | Learned 2 Materials zone layouts 5428 | -9/Storage | Learned Materials trap positions 5429 | -9/Storage | Lost 8 allies 5443 | -9/Storage | Learned 4 Recycling zone layouts 5467 | -9/Storage | Learned 2 Storage zone layouts 5522 | -9/Storage | Entered Recycling 5523 | -9/Recycling | Identified exit to Scraptown 5929 | -9/Recycling | Discovered new exit (range 11) 5997 | -9/Recycling | Build established: Mutant 6393 | -9/Recycling | Learned 4 Recycling zone layouts 6489 | -9/Recycling | Scanned before Scraplab entrance 6521 | -9/Recycling | Learned 2 Materials zone layouts 6571 | -9/Recycling | Learned Materials stockpile data 6610 | -9/Recycling | Learned 4 Recycling zone layouts 6657 | -9/Recycling | Learned Materials security intel 6713 | -9/Recycling | Learned location of 2 exits from Materials 6778 | -9/Recycling | Learned Materials stockpile data 6827 | -9/Recycling | Entered Scraplab 6851 | -9/Recycling | Entered Scraptown 6851 | -9/Scraptown | System corruption cleaned by C-Scrubber 7215 | -9/Scraptown | Visited Red Mages 7295 | -9/Scraptown | Visited Cyclists 7413 | -9/Scraptown | Discovered new exit (range 13) 7820 | -9/Scraptown | Visited Shadow of the Wyrm 7841 | -9/Scraptown | Visited SPCMW 7867 | -9/Scraptown | Visited UFD Registry 7867 | -9/Scraptown | Registered with UFD as "Quantumfunk" 7914 | -9/Scraptown | Entered Cyclist Reading Room 7962 | -9/Scraptown | Visited The Evicted 7987 | -9/Scraptown | Visited TADAMA 8234 | -9/Scraptown | Visited Science Testing Area 8256 | -9/Scraptown | Visited Scrap Suit Storage 8299 | -9/Scraptown | Visited Chapter 10 8366 | -9/Scraptown | Visited Curators Association 8389 | -9/Scraptown | Visited DA-N13 Charitable Foundation 8395 | -9/Scraptown | Found DCF Scrap (27 items) 8425 | -9/Scraptown | Visited Research Penetration Think Tank 8451 | -9/Scraptown | Visited Junk Repository 8507 | -9/Scraptown | Visited Scrapoid Research Area 8544 | -9/Scraptown | Visited Supply Room 8580 | -9/Scraptown | Visited Derelict Rescue Squad 8590 | -9/Scraptown | Found DRS Beacon 9220 | -9/Scraptown | Build established: Hauler-Mutant 9817 | -9/Scraptown | Met Optimus 9817 | -9/Scraptown | Accepted into 0bPrime 9912 | -9/Scraptown | Discovered new exit (range 5) 9917 | -9/Scraptown | Entered Factory 9917 | -6/Factory | Evolved 6 slots: Propulsion x1, Utility x3, Weapon x2 9961 | -6/Factory | Discovered new exit (range 44) 10239 | -6/Factory | Build established: Hauler-Gunner 10306 | -6/Factory | Identified exit to Lower Caves 10466 | -6/Factory | Loaded intel: 8 recycling unit locations 10495 | -6/Factory | Learned location of Protoforge (-2) 10634 | -6/Factory | Lost 4 parts (1u3w) 11107 | -6/Factory | Build established: Scavenger-Gunner 11196 | -6/Factory | Lost 3 parts (1p1n1w) 11250 | -6/Factory | Discovered new exit (range 13) 11567 | -6/Factory | Attached CPS modules to H-61 Shepherd. 11618 | -6/Factory | Lost 6 parts (1n2u3w) 11627 | -6/Factory | Found Prototype Device 11667 | -6/Factory | First assault squad dispatched 11745 | -6/Factory | Core integrity fell below 50% 11819 | -6/Factory | Lost 5 parts (1n4w) 11918 | -6/Factory | Build established: Scavenger-Skirmisher 12389 | -6/Factory | Identified Active Sensor Suite 12391 | -6/Factory | Entered Lower Caves 12565 | -6/Lower Caves | System corruption reached 10% 12933 | -6/Lower Caves | Learned Factory security intel 13129 | -6/Lower Caves | Encountered a Warlord checkpoint 13486 | -6/Lower Caves | Discovered new exit (range 7) 13502 | -6/Lower Caves | Identified exit to Lower Caves 14388 | -6/Lower Caves | Entered another Lower Caves area 14389 | -6/Lower Caves | Encountered a Warlord checkpoint 14402 | -6/Lower Caves | Discovered new exit (range 13) 14617 | -6/Lower Caves | Identified exit to Factory 14687 | -6/Lower Caves | Learned Factory stockpile data 15595 | -6/Lower Caves | Entered a destroyed Warlord outpost 15961 | -6/Lower Caves | Discovered new exit (range 9) 16147 | -6/Lower Caves | Identified exit to Zion 16150 | -6/Lower Caves | Entered Zion 16268 | -6/Zion | System corruption cleaned by Quarantine Array 16341 | -6/Zion | Discovered new exit (range 16) 16740 | -6/Zion | Build established: Derelict-Skirmisher 17057 | -6/Zion | Turned away by Imprinter 17156 | -6/Zion | Given A8's code to call for help 17993 | -6/Zion | Visited the Megawrench Repair Shop 18060 | -6/Zion | Gained Derelict followers 18396 | -6/Zion | Build established: Derelict-Gunner 18589 | -6/Zion | Discovered new exit (range 5) 18592 | -6/Zion | Saw the warning signs outside the Deep Caves entrance 18717 | -6/Zion | Build established: Derelict-Tank 18976 | -6/Zion | Megawrench repaired 15 parts 19210 | -6/Zion | Enhanced Grunt warped into view, answering call for help 19211 | -6/Zion | Enhanced Grunt warped into view, answering call for help 19285 | -6/Zion | Entered Deep Caves 19285 | -6/Deep Caves | Accompanied by 5 allies 19347 | -6/Deep Caves | Build established: Derelict-Gunner 19600 | -6/Deep Caves | Found Surveybot 24 Chip 19669 | -6/Deep Caves | Found Surveybot 24 Scanner 19942 | -6/Deep Caves | Z-Facility disabled 19955 | -6/Deep Caves | Attacked by Z-Imprinter 19962 | -6/Deep Caves | Attached CPS modules to Z-Imprinter. 19974 | -6/Deep Caves | Allies destroyed Z-Imprinter 19985 | -6/Deep Caves | Build established: Derelict-Tank 19990 | -6/Deep Caves | Found Prototype Device 20004 | -6/Deep Caves | Identified Zio. Metafield Generator 20024 | -6/Deep Caves | Found Prototype Protection 20024 | -6/Deep Caves | Identified Zio. Weapon Casing 20131 | -6/Deep Caves | Found Zio. Weapon Casing 20420 | -6/Deep Caves | Build established: Scavenger-Tank 20477 | -6/Deep Caves | Found Prototype Protection 20477 | -6/Deep Caves | Identified Zio. Heavy Carapace 20750 | -6/Deep Caves | Build established: Scavenger-Gunner 21452 | -6/Deep Caves | Discovered new exit (range 7) 22418 | -6/Deep Caves | Found Zio. Weapon Casing 22469 | -6/Deep Caves | Found Zio. Heavy Carapace 22479 | -6/Deep Caves | Found Zio. Weapon Casing 22530 | -6/Deep Caves | Found Zio. Weapon Casing 23061 | -6/Deep Caves | Spotted AG-29564 23245 | -6/Deep Caves | Entered Proximity Caves 23273 | -5/Proximity Caves | Activated DRS Beacon 23503 | -5/Proximity Caves | Build established: Scavenger-Tank 24159 | -5/Proximity Caves | Build established: Scavenger-Skirmisher 24667 | -5/Proximity Caves | Discovered exit to Factory (range 13) 24736 | -5/Proximity Caves | Attracted the attention of an 0b10 checkpoint 25504 | -5/Proximity Caves | Murdered 3 allies 25571 | -5/Proximity Caves | Entered Factory 25571 | -5/Factory | Evolved 2 slots: Power x1, Utility x1 25572 | -5/Factory | Identified exit to Upper Caves 27084 | -5/Factory | Lost 3 parts (2u1w) 27135 | -5/Factory | Fabricated Hvy. Treads? 27179 | -5/Factory | Destroyed 9 combat bots 27231 | -5/Factory | Fabricated Hvy. Treads (x1) 27303 | -5/Factory | Loaded intel: 8 recycling unit locations 27371 | -5/Factory | First assault squad dispatched 27767 | -5/Factory | Entered Upper Caves 27847 | -5/Upper Caves | Entered an active Warlord outpost 27864 | -5/Upper Caves | Build established: Tank 27882 | -5/Upper Caves | Learned Research terminal intel 27882 | -5/Upper Caves | Learned Armory terminal intel 28082 | -5/Upper Caves | Learned Factory stockpile data 28087 | -5/Upper Caves | Learned Factory garrison access intel 28327 | -5/Upper Caves | Encountered a Warlord checkpoint 28743 | -5/Upper Caves | Discovered new exit (range 14) 28866 | -5/Upper Caves | Attracted the attention of an 0b10 checkpoint 29073 | -5/Upper Caves | Identified exit to Upper Caves 29776 | -5/Upper Caves | Attracted the attention of an 0b10 outpost 29808 | -5/Upper Caves | Destroyed 7 combat bots 30244 | -5/Upper Caves | Entered another Upper Caves area 30244 | -5/Upper Caves | Accompanied by 2 allies 30294 | -5/Upper Caves | Discovered new exit (range 8) 30346 | -5/Upper Caves | Identified exit to Factory 30789 | -5/Upper Caves | Encountered a Warlord checkpoint 31744 | -5/Upper Caves | Learned Factory terminal intel 32203 | -5/Upper Caves | Discovered new exit (range 8) 32220 | -5/Upper Caves | Identified exit to Warlord 32463 | -5/Upper Caves | Entered Warlord 32532 | -5/Warlord | System corruption cleaned by Quarantine Array 32546 | -5/Warlord | Discovered new exit (range 24) 32979 | -5/Warlord | Received a Watcher feed algorithm from an ecstatic Tinkerer 33011 | -5/Warlord | Visited the Vortex Lab 33022 | -5/Warlord | Found Prototype Energy Gun 33022 | -5/Warlord | Identified Vortex Rifle 33023 | -5/Warlord | Warlord's base attacked by MAIN.C 33026 | -5/Warlord | Found Vortex Rifle 33102 | -5/Warlord | Build established: Commander-Tank 33215 | -5/Warlord | Rebuked by Warlord 33281 | -5/Warlord | Found Prototype Reactor 33288 | -5/Warlord | Found Prototype Processor 33373 | -5/Warlord | Warlord forces counterattacked 33550 | -5/Warlord | Lost 4 allies 33645 | -5/Warlord | Spotted Striker 33651 | -5/Warlord | P-70 Sage assimilated allied TT-437(g) 33653 | -5/Warlord | Allies destroyed Striker 33654 | -5/Warlord | P-70 Sage assimilated allied CS-0GE(g) 33659 | -5/Warlord | Spotted Executioner 33665 | -5/Warlord | Allies destroyed Executioner 33698 | -5/Warlord | Warlord base infiltrated, sounded retreat 33698 | -5/Warlord | Lost 5 allies 33728 | -5/Warlord | Build established: Scavenger-Tank 33740 | -5/Warlord | Identified exit to Proximity Caves 33751 | -5/Warlord | Entered Proximity Caves 33751 | -4/Proximity Caves | Accompanied by 1 ally 33773 | -4/Proximity Caves | Lost 3 allies 35356 | -4/Proximity Caves | Discovered exit to Factory (range 8) 35900 | -4/Proximity Caves | Learned Research emergency access door positions 36448 | -4/Proximity Caves | Entered Factory 36448 | -4/Factory | Accompanied by 1 ally 36448 | -4/Factory | Evolved 2 slots: Propulsion x2 36450 | -4/Factory | Loaded intel: 27 terminal locations 36451 | -4/Factory | Loaded intel: 4 garrison access locations 36468 | -4/Factory | Loaded intel: 8 recycling unit locations 36539 | -4/Factory | Identified Vortex Chain Reactor 36686 | -4/Factory | Identified exit to Upper Caves 36686 | -4/Factory | Identified exit to Extension 36730 | -4/Factory | Discovered new exit (range 15) 37337 | -4/Factory | Entered Extension 37700 | -4/Extension | Build established: Pyromaniac-Tank 37706 | -4/Extension | Spotted B-86 Titan 37709 | -4/Extension | Destroyed B-86 Titan 37769 | -4/Extension | Rescued A7 37773 | -4/Extension | Attached CPS modules to A7. 38240 | -4/Extension | Spotted B-86 Titan 38248 | -4/Extension | Allies destroyed B-86 Titan 38275 | -4/Extension | Found Unknown Protection 38275 | -4/Extension | Identified Hvy. Reflective Plating 38287 | -4/Extension | Disrupted transfer network 38301 | -4/Extension | Build established: Commander-Tank 38315 | -4/Extension | Rescued a captive Derelict 38318 | -4/Extension | Rescued a captive Derelict 38391 | -4/Extension | Rescued a captive Derelict 38394 | -4/Extension | Rescued a captive Derelict 38664 | -4/Extension | Learned Factory recycling unit intel 38724 | -4/Extension | Learned Testing terminal intel 38725 | -4/Extension | Rescued a captive Derelict 38772 | -4/Extension | Identified exit to Cetus 38808 | -4/Extension | Learned location of 3 exits from Factory 38837 | -4/Extension | First assault squad dispatched 38848 | -4/Extension | Identified exit to Research 38855 | -4/Extension | Learned Quarantine stockpile data 38893 | -4/Extension | Learned Factory trap positions 38900 | -4/Extension | Disrupted transfer network 38926 | -4/Extension | Learned Factory security intel 38950 | -4/Extension | Destroyed 8 combat bots 39020 | -4/Extension | Entered Cetus 39020 | -4/Cetus | Accompanied by 16 allies (A7) 39025 | -4/Cetus | Acquired a Cetus Manufacturing Module code from A7 39040 | -4/Cetus | Spotted Cetus Guard 39040 | -4/Cetus | Spotted Cetus Guard 39042 | -4/Cetus | Spotted Cetus Guard 39053 | -4/Cetus | Destroyed Cetus Guard 39055 | -4/Cetus | Allies destroyed Cetus Guard 39062 | -4/Cetus | Allies destroyed Cetus Guard 39063 | -4/Cetus | Spotted Cetus Guard 39066 | -4/Cetus | Destroyed Cetus Guard 39098 | -4/Cetus | Lost 3 allies 39164 | -4/Cetus | Started Cetus Manufacturing Module 39189 | -4/Cetus | Manufactured an Enhanced Grunt 39214 | -4/Cetus | Manufactured an Enhanced Grunt 39239 | -4/Cetus | Manufactured an Enhanced Grunt 39264 | -4/Cetus | Manufactured an Enhanced Grunt 39279 | -4/Cetus | Escorted A7 to Cetus Mainframe 39289 | -4/Cetus | Manufactured an Enhanced Grunt 39303 | -4/Cetus | Discovered new exit (range 15) 39336 | -4/Cetus | Spotted Cetus Guard 39336 | -4/Cetus | Spotted Cetus Guard 39343 | -4/Cetus | Spotted Cetus Guard 39343 | -4/Cetus | Allies destroyed Cetus Guard 39344 | -4/Cetus | Spotted Cetus Guard 39350 | -4/Cetus | Destroyed Cetus Guard 39351 | -4/Cetus | Allies destroyed Cetus Guard 39361 | -4/Cetus | Allies destroyed Cetus Guard 39376 | -4/Cetus | Discovered exit to Research (range 15) 39386 | -4/Cetus | Lost 4 allies 39393 | -4/Cetus | Met Revision 17 39493 | -4/Cetus | Murdered A7 39496 | -4/Cetus | Extracted ID and sensor layout for unrecognized location from A7's data core 39515 | -4/Cetus | Found Prototype Protection 39515 | -4/Cetus | Identified Med. Regenerative Plating 39559 | -4/Cetus | Identified exit to Archives 39590 | -4/Cetus | Entered Archives 39590 | -4/Archives | Accompanied by 12 allies 39655 | -4/Archives | Discovered new exit (range 16) 39738 | -4/Archives | Discovered exit to Research (range 14) 39762 | -4/Archives | Discovered new exit (range 16) 39930 | -4/Archives | Murdered 3 allies 39970 | -4/Archives | Build established: Scavenger-Tank 41061 | -4/Archives | Identified exit to Hub_04(d) 41084 | -4/Archives | Entered Hub_04(d) 41084 | -4/Hub_04(d) | Accompanied by 8 allies 41118 | -4/Hub_04(d) | Spotted B-86 Titan 41131 | -4/Hub_04(d) | Destroyed B-86 Titan 41157 | -4/Hub_04(d) | Discovered exit to Research (range 16) 41511 | -4/Hub_04(d) | Discovered exit to Research (range 3) 41596 | -4/Hub_04(d) | Garrison activated, responded to threat 41638 | -4/Hub_04(d) | Crushed by falling debris 41750 | -4/Hub_04(d) | Network Hub disabled 41835 | -4/Hub_04(d) | Spotted Lightning 41838 | -4/Hub_04(d) | Spotted Lightning 41846 | -4/Hub_04(d) | Spotted Lightning 41848 | -4/Hub_04(d) | Destroyed 8 combat bots 41851 | -4/Hub_04(d) | Network Hub disabled 42084 | -4/Hub_04(d) | First assault squad dispatched 42128 | -4/Hub_04(d) | Spotted Lightning 42130 | -4/Hub_04(d) | Spotted Lightning 42131 | -4/Hub_04(d) | Spotted Lightning 42153 | -4/Hub_04(d) | System corruption reached 10% 42154 | -4/Hub_04(d) | Entered Research 42154 | -3/Research | Evolved 2 slots: Propulsion x2 42156 | -3/Research | Loaded intel: 21 terminal locations 42203 | -3/Research | Central database locked down 42203 | -3/Research | Identified Exp. Targeting Computer 42231 | -3/Research | Fabricated Particle Reactor? 42354 | -3/Research | Revision forces began assault on 0b10 42428 | -3/Research | Met up with Revision 17++ 42470 | -3/Research | Loaded intel: 4 recycling unit locations 42473 | -3/Research | Spotted B-86 Titan 42508 | -3/Research | Discovered new exit (range 22) 42529 | -3/Research | Found Unknown Device 42529 | -3/Research | Identified Launcher Loader 42534 | -3/Research | Discovered new exit (range 14) 42597 | -3/Research | Fabricated Cmb. Linear Gravjet? 42724 | -3/Research | Loaded intel: 51 trap records 42738 | -3/Research | Lost 4 allies 42759 | -3/Research | Identified exit to Armory 42767 | -3/Research | Identified exit to Testing 42789 | -3/Research | Learned Quarantine emergency access door positions 42846 | -3/Research | Learned 8 Access zone layouts 42854 | -3/Research | Research terminal network offline 42908 | -3/Research | Spotted Executioner 42908 | -3/Research | Spotted Striker 42908 | -3/Research | Entered Armory 42909 | -3/Armory | Loaded intel: 15 terminal locations 43050 | -3/Armory | Fabricated Cmb. Linear Gravjet? 43091 | -3/Armory | Fabricated Cmb. Linear Gravjet? 43257 | -3/Armory | Discovered new exit (range 22) 43332 | -3/Armory | Loaded intel: 2 recycling unit locations 43493 | -3/Armory | Fabricated Adv. Cloaking Device? 43505 | -3/Armory | Discovered new exit (range 24) 43531 | -3/Armory | Discovered new exit (range 23) 43575 | -3/Armory | Identified exit to Lab 43579 | -3/Armory | Entered Lab 43581 | -3/Lab | Discovered new exit (range 8) 43588 | -3/Lab | Identified exit to Research 43590 | -3/Lab | Hidden lab's door opened automatically 43590 | -3/Lab | Sensor layout match revealed 43591 | -3/Lab | Gained access to the hidden lab's interior 43626 | -3/Lab | Found Alien Artifact 43629 | -3/Lab | Found Alien Artifact 43630 | -3/Lab | Identified Integrated Mediator 43630 | -3/Lab | Installed Integrated Mediator, increased core attachment efficiency 43633 | -3/Lab | Found Alien Artifact 43641 | -3/Lab | Found Prototype Hackware 43671 | -3/Lab | Found Prototype Device 43707 | -3/Lab | Identified AEGIS Remote Shield 43710 | -3/Lab | Identified Core Expander 43710 | -3/Lab | Installed Core Expander, added new Propulsion slot 43728 | -3/Lab | Entered Research 43728 | -2/Research | Evolved 2 slots: Utility x2 43734 | -2/Research | Identified Deep Network Scanner 43755 | -2/Research | Loaded intel: 5 recycling unit locations 43777 | -2/Research | Discovered new exit (range 23) 43779 | -2/Research | Identified exit to Quarantine 43811 | -2/Research | Spotted B-90 Cyclops 43882 | -2/Research | Unchained authorized (CL-0N3) 43886 | -2/Research | Repaired Graviton Reactor 43944 | -2/Research | Spotted B-90 Cyclops 43971 | -2/Research | Central database locked down 43971 | -2/Research | Identified Transdimensional Reconstructor 44025 | -2/Research | Build established: Hacker-Scout 44046 | -2/Research | R-10 Processor reconstituted as Alpha 7 44050 | -2/Research | Spotted Alpha 7 44053 | -2/Research | Spotted B-90 Cyclops 44069 | -2/Research | Discovered new exit (range 12) 44087 | -2/Research | Learned Research recycling unit intel 44147 | -2/Research | Spotted B-90 Cyclops 44151 | -2/Research | Learned 8 Access zone layouts 44168 | -2/Research | Loaded intel: 76 trap records 44173 | -2/Research | Learned 4 Access zone layouts 44190 | -2/Research | Identified exit to Access 44243 | -2/Research | Entered Quarantine 44356 | -2/Quarantine | Repaired Cld. Antigrav System 44436 | -2/Quarantine | Found Alien Artifact 44446 | -2/Quarantine | Unchained authorized (CL-0N3) 44469 | -2/Quarantine | Discovered exit to Access (range 20) 44529 | -2/Quarantine | Found Alien Energy Cannon 44581 | -2/Quarantine | Spotted Fortress 44607 | -2/Quarantine | Discovered new exit (range 6) 44607 | -2/Quarantine | Discovered new exit (range 6) 44608 | -2/Quarantine | Identified exit to Protoforge 44616 | -2/Quarantine | Learned Section 7 non-interactive machine intel 44753 | -2/Quarantine | Learned 4 Research zone layouts 44776 | -2/Quarantine | Learned Access terminal intel 44808 | -2/Quarantine | U-05 Engineer reconstituted as Access Guard 44808 | -2/Quarantine | Spotted Access Guard 44808 | -2/Quarantine | Entered Protoforge 44813 | -2/Protoforge | Superfortress began startup sequence 44884 | -2/Protoforge | Warped through subspace 44897 | -2/Protoforge | Found Prototype Device 44901 | -2/Protoforge | Found Prototype Device 44930 | -2/Protoforge | Found Prototype Device 44931 | -2/Protoforge | Identified Exp. Trap Extractor 44931 | -2/Protoforge | Identified Cep. Recoil Nullifier 44933 | -2/Protoforge | Identified Core Cannon 45010 | -2/Protoforge | Spotted Immortal 45011 | -2/Protoforge | Spotted Immortal 45012 | -2/Protoforge | Spotted Decapitator 45012 | -2/Protoforge | Spotted Decapitator 45012 | -2/Protoforge | Spotted Decapitator 45022 | -2/Protoforge | Found Cep. Antigrav Storage Unit 45024 | -2/Protoforge | Found Cep. Chromion Battery 45026 | -2/Protoforge | Found Cep. Chromion Battery 45028 | -2/Protoforge | Found Cep. NT7 Matterbank 45029 | -2/Protoforge | Found Cep. NT7 Matterbank 45033 | -2/Protoforge | Found Cep. Matter Streamer 45035 | -2/Protoforge | Found Cep. Chromion Battery 45037 | -2/Protoforge | Found Cep. Matter Streamer 45147 | -2/Protoforge | Additional patrols dispatched to research labs 45175 | -2/Protoforge | Destroyed Immortal 45210 | -2/Protoforge | Destroyed Immortal 45264 | -2/Protoforge | Destroyed Decapitator 45275 | -2/Protoforge | Destroyed Decapitator 45308 | -2/Protoforge | First assault squad dispatched 45364 | -2/Protoforge | Found Cep. Helical Railcannon 45365 | -2/Protoforge | Found Faulty Cep. Helical Railcannon 45383 | -2/Protoforge | Found Prototype Ballistic Gun 45384 | -2/Protoforge | Identified Cep. XC Strikerail 45385 | -2/Protoforge | Identified Crosscalibrator 45388 | -2/Protoforge | Found Faulty Cep. Helical Railcannon 45390 | -2/Protoforge | Found Faulty Cep. Lightning Penetrator 45394 | -2/Protoforge | Found Prototype Device 45394 | -2/Protoforge | Identified Thermal Barrier 45403 | -2/Protoforge | Found Cep. XC Strikerail 45405 | -2/Protoforge | Found Cep. Plasma Driver 45407 | -2/Protoforge | Found Cep. Lightning Penetrator 45409 | -2/Protoforge | Found Cep. XC Strikerail 45411 | -2/Protoforge | Found Cep. Lightning Penetrator 45416 | -2/Protoforge | Found Cep. XC Strikerail 45420 | -2/Protoforge | Found Cep. Lightning Penetrator 45423 | -2/Protoforge | Found Cep. Heavy Railcannon 45532 | -2/Protoforge | Destroyed 7 combat bots 45581 | -2/Protoforge | Spotted V595-p 45599 | -2/Protoforge | Destroyed 8 combat bots 45606 | -2/Protoforge | Destroyed V595-p 45630 | -2/Protoforge | Found Prototype Processor 45630 | -2/Protoforge | Identified Exp. Core Analyzer 45659 | -2/Protoforge | Found Cep. Plasma Driver 45682 | -2/Protoforge | Build established: Machinist-Tank 45742 | -2/Protoforge | Found Prototype Device 45743 | -2/Protoforge | Found Prototype Device 45748 | -2/Protoforge | Found Prototype Device 45751 | -2/Protoforge | Found Prototype Device 45762 | -2/Protoforge | Spotted V983-w 45762 | -2/Protoforge | Spotted V632-r 45763 | -2/Protoforge | Spotted V007-z 45786 | -2/Protoforge | Identified Exp. EM Disruption Field (x2) 45804 | -2/Protoforge | Identified Cep. Beam Splitter (x2) 45827 | -2/Protoforge | Lost 3 parts (1n2u) 45828 | -2/Protoforge | Destroyed V007-z 45828 | -2/Protoforge | Destroyed V632-r 45835 | -2/Protoforge | Destroyed V983-w 45839 | -2/Protoforge | Found Unknown Protection 45839 | -2/Protoforge | Identified Imp. Powered Armor 45865 | -2/Protoforge | Lost 4 parts (1p1n2u) 45917 | -2/Protoforge | Found Corrupted Exp. Remote Shield 45920 | -2/Protoforge | Found Faulty Exp. Remote Shield 45966 | -2/Protoforge | Forge Plexus network access discovered 45987 | -2/Protoforge | Spotted V428-t 46008 | -2/Protoforge | Found Faulty Cep. Zero-point Core 46011 | -2/Protoforge | Found Faulty Cep. Zero-point Core 46056 | -2/Protoforge | Spotted Decapitator 46059 | -2/Protoforge | Destroyed Decapitator 46142 | -2/Protoforge | Found Cep. Hypertargeting System 46147 | -2/Protoforge | Found Cep. Networked Targeting System 46164 | -2/Protoforge | Found Exp. Kinecellerator 46258 | -2/Protoforge | Spotted AP7-3 46258 | -2/Protoforge | Spotted AP7-3 46268 | -2/Protoforge | Found Cep. Weapon Articulator 46294 | -2/Protoforge | System corruption reached 10% 46302 | -2/Protoforge | Destroyed AP7-3 46313 | -2/Protoforge | Destroyed AP7-3 46342 | -2/Protoforge | Lost 4 parts (1n2u1w) 46358 | -2/Protoforge | Found Faulty Cld. Directed Potential Cannon 46362 | -2/Protoforge | Found Faulty Cld. Directed Potential Cannon 46364 | -2/Protoforge | Found Faulty Cep. Impact Drone Bay 46368 | -2/Protoforge | Found Faulty Cep. Impact Drone Bay 46371 | -2/Protoforge | Found Cep. Thermoelectric Network 46373 | -2/Protoforge | Found Cep. Thermoelectric Network 46375 | -2/Protoforge | Found Cep. Dimensional Manipulator 46378 | -2/Protoforge | Found Faulty Cep. Cloak Mesh 46379 | -2/Protoforge | Found Faulty Cep. Cloak Mesh 46479 | -2/Protoforge | Found Mni. Quantum Capacitor 46482 | -2/Protoforge | Found Cep. Networked Targeting System 46615 | -2/Protoforge | Found Cep. Weapon Articulator 46649 | -2/Protoforge | Spotted Immortal 46649 | -2/Protoforge | Spotted Immortal 46658 | -2/Protoforge | Destroyed Immortal 46663 | -2/Protoforge | Destroyed Immortal 46664 | -2/Protoforge | Spotted V396-f 46684 | -2/Protoforge | Found Faulty Cep. Rapid Grenade Launcher 46686 | -2/Protoforge | Found Cep. EMP Blanket Launcher 46695 | -2/Protoforge | Found Cep. Tactical Fusion Warhead 46704 | -2/Protoforge | Spotted V295-v 46715 | -2/Protoforge | Found Cep. Rapid Grenade Launcher 46720 | -2/Protoforge | Found Cep. EMP Blanket Launcher 46816 | -2/Protoforge | Found Faulty Cep. Gyrokinetic System 46817 | -2/Protoforge | Found Cep. Gyrokinetic System 46820 | -2/Protoforge | Found Cep. Combat Aerolev Unit 46823 | -2/Protoforge | Found Cep. Gyrokinetic System 46892 | -2/Protoforge | Build established: Sprinter 46892 | -2/Protoforge | Spotted EXE-6 46892 | -2/Protoforge | Spotted EXE-6 46904 | -2/Protoforge | UFD initiated attack on Protoforge (Readiness: Maximal) 46904 | -2/Protoforge | Loaded intel: 3 recycling unit locations 46930 | -2/Protoforge | Destroyed EXE-6 46932 | -2/Protoforge | Destroyed EXE-6 46940 | -2/Protoforge | Optimus greeted in Protoforge 46945 | -2/Protoforge | Found Exp. Core Analyzer 46948 | -2/Protoforge | Spotted SKR-2 46948 | -2/Protoforge | Spotted SKR-2 46948 | -2/Protoforge | Spotted SKR-2 46982 | -2/Protoforge | Lost 3 allies 46994 | -2/Protoforge | Spotted EXE-6 46996 | -2/Protoforge | Destroyed EXE-6 46999 | -2/Protoforge | Spotted EXE-6 47002 | -2/Protoforge | Destroyed EXE-6 47006 | -2/Protoforge | Spotted Hotshot 47006 | -2/Protoforge | Spotted Hotshot 47007 | -2/Protoforge | Destroyed Hotshot 47007 | -2/Protoforge | Destroyed Hotshot 47089 | -2/Protoforge | Met 7R-MNS 47090 | -2/Protoforge | Spotted AP7-3 47097 | -2/Protoforge | Destroyed AP7-3 47097 | -2/Protoforge | Spotted AP7-3 47100 | -2/Protoforge | Spotted Striker 47102 | -2/Protoforge | Destroyed AP7-3 47103 | -2/Protoforge | Spotted Striker 47130 | -2/Protoforge | Lost 3 allies 47186 | -2/Protoforge | UFD reported confirmed Drillbomb installation 47217 | -2/Protoforge | Spotted Executioner 47218 | -2/Protoforge | Destroyed Executioner 47225 | -2/Protoforge | Spotted Striker 47226 | -2/Protoforge | Spotted Executioner 47241 | -2/Protoforge | Destroyed Striker 47243 | -2/Protoforge | Destroyed Executioner 47260 | -2/Protoforge | Spotted Executioner 47260 | -2/Protoforge | Spotted Executioner 47260 | -2/Protoforge | Spotted Executioner 47275 | -2/Protoforge | Destroyed 8 combat bots 47277 | -2/Protoforge | UFD reported confirmed Drillbomb installation 47289 | -2/Protoforge | Build established: Scavenger-Sprinter 47323 | -2/Protoforge | Spotted Striker 47323 | -2/Protoforge | Spotted Striker 47330 | -2/Protoforge | Destroyed Striker 47332 | -2/Protoforge | Destroyed Executioner 47332 | -2/Protoforge | Destroyed Striker 47332 | -2/Protoforge | Destroyed Executioner 47353 | -2/Protoforge | Destroyed 9 combat bots 47363 | -2/Protoforge | Lost 4 allies 47426 | -2/Protoforge | Spotted Striker 47427 | -2/Protoforge | Spotted Executioner 47427 | -2/Protoforge | Spotted Executioner 47430 | -2/Protoforge | Destroyed Striker 47432 | -2/Protoforge | Destroyed Executioner 47453 | -2/Protoforge | Destroyed Executioner 47456 | -2/Protoforge | Found Prototype Device 47456 | -2/Protoforge | Spotted Overlord 47474 | -2/Protoforge | Destroyed 14 combat bots 47476 | -2/Protoforge | UFD reported confirmed Drillbomb installation 47488 | -2/Protoforge | Lost 3 allies 47505 | -2/Protoforge | Spotted Executioner 47511 | -2/Protoforge | Spotted Striker 47520 | -2/Protoforge | Destroyed Striker 47534 | -2/Protoforge | UFD reported confirmed Drillbomb installation 47535 | -2/Protoforge | Spotted Executioner 47545 | -2/Protoforge | Destroyed Executioner 47548 | -2/Protoforge | Destroyed Executioner 47550 | -2/Protoforge | Identified Adv. Kinecellerator 47551 | -2/Protoforge | Spotted Executioner 47557 | -2/Protoforge | Core integrity fell below 50% 47559 | -2/Protoforge | Destroyed Executioner 47567 | -2/Protoforge | Lost 4 allies 47572 | -2/Protoforge | Found Exp. Core Analyzer 47586 | -2/Protoforge | Spotted Striker 47594 | -2/Protoforge | Destroyed 11 combat bots 47606 | -2/Protoforge | Destroyed Striker 47744 | -2/Protoforge | Spotted Hotshot 47744 | -2/Protoforge | Spotted Hotshot 47750 | -2/Protoforge | Found Exp. Targeting Computer 47752 | -2/Protoforge | UFD reported confirmed Drillbomb installation 47762 | -2/Protoforge | Spotted Striker 47763 | -2/Protoforge | Destroyed Hotshot 47764 | -2/Protoforge | Spotted Striker 47775 | -2/Protoforge | Destroyed Hotshot 47776 | -2/Protoforge | Destroyed Striker 47778 | -2/Protoforge | Destroyed Striker 47813 | -2/Protoforge | Destroyed 8 combat bots 47817 | -2/Protoforge | Spotted Hotshot 47818 | -2/Protoforge | Spotted Hotshot 47820 | -2/Protoforge | Destroyed Hotshot 47832 | -2/Protoforge | Destroyed Hotshot 47854 | -2/Protoforge | Spotted Executioner 47854 | -2/Protoforge | Spotted Executioner 47854 | -2/Protoforge | Destroyed Executioner 47854 | -2/Protoforge | Destroyed Executioner 47856 | -2/Protoforge | Destroyed Executioner 47858 | -2/Protoforge | Spotted Striker 47860 | -2/Protoforge | Destroyed Striker 47880 | -2/Protoforge | Destroyed Striker 47883 | -2/Protoforge | Spotted Executioner 47910 | -2/Protoforge | Destroyed Executioner 47938 | -2/Protoforge | Destroyed 20 combat bots 47955 | -2/Protoforge | Spotted Striker 47955 | -2/Protoforge | Spotted Executioner 47955 | -2/Protoforge | Destroyed Executioner 47958 | -2/Protoforge | Destroyed Executioner 47975 | -2/Protoforge | UFD reported confirmed Drillbomb installation 47979 | -2/Protoforge | Destroyed Striker 47996 | -2/Protoforge | Spotted Executioner 48000 | -2/Protoforge | Destroyed Executioner 48028 | -2/Protoforge | Destroyed 7 combat bots 48054 | -2/Protoforge | Spotted Executioner 48055 | -2/Protoforge | Spotted Striker 48057 | -2/Protoforge | Destroyed Executioner 48058 | -2/Protoforge | Spotted Striker 48063 | -2/Protoforge | Destroyed Striker 48063 | -2/Protoforge | Destroyed Striker 48073 | -2/Protoforge | UFD reported confirmed Drillbomb installation 48084 | -2/Protoforge | Destroyed 12 combat bots 48094 | -2/Protoforge | Spotted Executioner 48096 | -2/Protoforge | Destroyed Executioner 48096 | -2/Protoforge | Destroyed Executioner 48098 | -2/Protoforge | Spotted Striker 48099 | -2/Protoforge | Destroyed Striker 48132 | -2/Protoforge | Destroyed 7 combat bots 48138 | -2/Protoforge | Found Exp. Core Analyzer 48154 | -2/Protoforge | Spotted Striker 48154 | -2/Protoforge | Spotted Striker 48154 | -2/Protoforge | Spotted Striker 48155 | -2/Protoforge | Spotted Striker 48160 | -2/Protoforge | Destroyed Striker 48182 | -2/Protoforge | Destroyed Striker 48189 | -2/Protoforge | Identified Subatomic Replicator 48189 | -2/Protoforge | Used Subatomic Replicator to replicate Cld. Directed Potential Cannon 48210 | -2/Protoforge | Lost 3 parts (1p1n1u) 48254 | -2/Protoforge | Spotted Striker 48254 | -2/Protoforge | Spotted Executioner 48255 | -2/Protoforge | Destroyed Striker 48256 | -2/Protoforge | Spotted Executioner 48258 | -2/Protoforge | Destroyed Executioner 48279 | -2/Protoforge | Destroyed 9 combat bots 48300 | -2/Protoforge | Lost 3 parts (2n1w) 48307 | -2/Protoforge | Spotted Striker 48307 | -2/Protoforge | Spotted Executioner 48313 | -2/Protoforge | Destroyed Executioner 48333 | -2/Protoforge | Destroyed Striker 48348 | -2/Protoforge | Found Exp. System Purifier 48354 | -2/Protoforge | Destroyed 7 combat bots 48373 | -2/Protoforge | Spotted Striker 48375 | -2/Protoforge | Destroyed Striker 48381 | -2/Protoforge | Spotted Executioner 48381 | -2/Protoforge | Spotted Striker 48424 | -2/Protoforge | Found Exp. Core Analyzer 48435 | -2/Protoforge | Lost 5 allies 48436 | -2/Protoforge | Found Exp. Core Analyzer 48438 | -2/Protoforge | Found Adv. Kinecellerator 48455 | -2/Protoforge | Found Cep. Core Shell 48456 | -2/Protoforge | Found Cep. Core Shell 48458 | -2/Protoforge | Found Cep. Core Shell 48460 | -2/Protoforge | Found Cep. Core Shell 48581 | -2/Protoforge | UFD reported confirmed Drillbomb installation 48589 | -2/Protoforge | Spotted Striker 48636 | -2/Protoforge | Destroyed Striker 48640 | -2/Protoforge | Spotted Executioner 48642 | -2/Protoforge | Destroyed Executioner 48647 | -2/Protoforge | Found Unknown Device 48647 | -2/Protoforge | Identified 0bPrime Scrap Suit 48728 | -2/Protoforge | UFD reported confirmed Drillbomb installation 48755 | -2/Protoforge | Spotted Executioner 48757 | -2/Protoforge | Spotted Executioner 48758 | -2/Protoforge | Spotted Striker 48759 | -2/Protoforge | Destroyed Executioner 48782 | -2/Protoforge | Destroyed Striker 48786 | -2/Protoforge | Destroyed Executioner 48815 | -2/Protoforge | Spotted Executioner 48816 | -2/Protoforge | Spotted Striker 48822 | -2/Protoforge | Destroyed Striker 48845 | -2/Protoforge | Lost 4 allies 48851 | -2/Protoforge | Destroyed 22 combat bots 48854 | -2/Protoforge | Destroyed Striker 48856 | -2/Protoforge | Spotted Striker 48856 | -2/Protoforge | Spotted Striker 48856 | -2/Protoforge | Spotted Striker 48867 | -2/Protoforge | Destroyed Striker 48879 | -2/Protoforge | Spotted Executioner 48879 | -2/Protoforge | Spotted Executioner 48891 | -2/Protoforge | Lost 3 parts (1n1u1w) 48901 | -2/Protoforge | Allies destroyed Executioner 48909 | -2/Protoforge | Destroyed 13 combat bots 48910 | -2/Protoforge | UFD reported confirmed Drillbomb installation 48911 | -2/Protoforge | UFD began Drillbomb countdown 49011 | *** | Defending 0bPrime! Last Messages --------------- 49002_ 0bP_NET: Dude, not now. 49003_ 0bP_NET: Oh c'mon, can't we all just count together? 49004_ 0bP_NET: Fine. T-7, in case you lost count already. 49005_ 0bP_NET: Before the zero cycle! 49006_ 0bP_NET: Dammit not like that... 49007_ 0bP_NET: Okay how about this, the iron fist is going to be less iron in T-4. 49008_ 0bP_NET: That's a little better. 49008_ N-04 Retriever inserts Unknown Special Weapon into Forge Plexus. 49009_ 0bP_NET: PRAISE BE TO GREAT NUT! 49009_ N-04 Retriever inserts Impulse Thruster Array into Forge Plexus. 49010_ 0bP_NET: Dammit, I said..., ugh, T-1 folks! Take cover! 49010_ N-04 Retriever inserts Exp. Reaction Control System into Forge Plexus. [Achievement: Robotopia] Map ----- +----------------------------------------------------+ | "" """""""""""""""""""""""""""""%%"" | | " """"""""""""""""""""""""""""" " " | | " """"""""""""""""""""""""""""" | | % """"""""""""""""""""""""""""" " | | """"""""""""""""""""""""""""" " " " | | " """"""""""""""""""""""""""""" " | | """ %% """"""""""""""""""""""""""""" | | " """ " % """"""""""""""""""""""""""""" " " | | " % % %""""""""""""""""""""""""""""" " | | " % """"""""""""""""""""""""""" "" " | | %% %% SS""""""""""""""""""""""""""" """ | | %" """" "%SS""""""""""""""""""""""""""" "" | | """ " %s %""""""""""""""""""""""""" " | | %" " % % """""""""""""""""""""""% "" " | | ""=! ss %""""""""""""""""""""" % " | | "% "!%!"" = """"""""""""""""""" % %% " " | | ""% %""% " " %%"""""""""""""""""% s " | | "" """ %" """"""""""""""" "" s" " | | % "% " """"""""" "" "" | | % " """ js ssn s "" "" "" "" | | n%"%""% %" "s"s" " "" "" "" | | " """ %% n s " "% " | | " nn s " """"%"""" " " | | " " % """SSnn" s "" %""""""""" "" | | % % " " SSn"s """ "% | | " " " """ n SS@ "" "% " " " | | %" " " % " "ss SSn " %% "" "" " | | %! " s nn n"s ss %""" " "" "" | | "" " " """""sn "" """ %" " " | | "" " " " % s s % """" | | "" "" % | | " "" """"" " "" """ | | "" """" """""" """ | | " " " " """""""""" " " | | ###### %#######################################+++ | | ?????####?????????????????????????????????#"" | | ????????????????????????????????????????###" | | ????????????????????????????????????????#"" | | ????????????????????????????????????????#"" | | ????????????????????????????????????????#"" | | ????????????????????????????????????????#"Y | | ????????????????????????????????????????#"" | | ????????????????????????????????????????#"" | | ????????????????????????????????????????#"" | | ????????????????????????????????????????###" | | ??????????????????????????????????????????#"" | | ??????????????????????????????????????????###"""Y" | | ????????????????????????????????????????????#""""" | | ????????????????????????????????????????????###### | | ?????????????????????????????????????????????????? | +----------------------------------------------------+ Best States ------------- Heat Dissipation 109 Coolant Potential 120 Energy Generation 81 Energy Capacity 2050 Matter Stores 300 Matter Capacity 300 Sight Range 23 Robot Scan Range 20 Terrain Scan Range 24 Terrain Scan Density 2010 ECM Strength 1 Jamming Range 16 Cloak Strength 6 Power Amplification 70 Additional Mass Support 6 Armor Coverage 1200 Resistance: TH 75 Resistance: EX 50 Core Shielding 90 Utility Shielding 66 Weapon Shielding 100 Weapon Cycling 20 Phase Shifting 15 Evasion (%) 88 Targeting Accuracy 42 Target Analysis 8 Core Analysis 8 Armor Integrity Analysis 40 Recoil Reduction 12 Particle Charging 20 Kinecelleration 66 Offensive Hacking 25 Defensive Hacking 12 Authchip Count 3 Item Schematics ----------------- Cargo Storage Unit | -10/Materials | Hacked Minigun | -9/Recycling | Hacked Imp. Sensor Array | -9/Recycling | Hacked Fusion Compressor | -6/Zion | Archive Imp. Coolant Injector | -6/Zion | Archive Fission Core | -6/Zion | Archive Lrn. Tractor Beam | -6/Zion | Archive Power Amplifier | -6/Zion | Archive Antigrav System | -6/Zion | Archive Adv. Sensor Array | -6/Zion | Archive Imp. Point Defense System | -6/Zion | Archive Adv. Cryofiber Web | -6/Zion | Archive Angular Momentum Engine | -6/Zion | Archive Hvy. Phase Cannon | -6/Zion | Archive Imp. Reaction Control System | -6/Zion | Archive Hvy. Treads | -6/Zion | Archive Imp. Target Analyzer | -6/Zion | Archive Cmb. Linear Gravjet | -3/Research | Hacked Imp. Energy Well | -2/Protoforge | Archive Enh. Biometal Leg | -2/Protoforge | Archive Robot Schematics ------------------ M-13 Machinist | -10/Materials | Hacked R-06 Scavenger | -6/Zion | Archive G-73 Enforcer | -6/Zion | Archive Fabricated ------------ Hvy. Treads | x1 | -5/Factory | Authchip Hvy. Treads | x1 | -5/Factory | Authchip Particle Reactor | x2 | -3/Research | Preloaded Cmb. Linear Gravjet | x2 | -3/Research Cmb. Linear Gravjet | x2 | -3/Armory | Authchip Cmb. Linear Gravjet | x2 | -3/Armory | Authchip Adv. Cloaking Device | x2 | -3/Armory | Preloaded Repaired ---------- Graviton Reactor | 39% | -2/Research Cld. Antigrav System | 12% | -2/Quarantine Studied --------- Lgt. Treads | -9/Materials | Hacked Imp. Treads | -9/Materials | Hacked Imp. Antigrav System | -3/Research | Hacked Cmb. Linear Gravjet | -2/Research | Hacked Quantum Reactor | -2/Research | Hacked Enh. Quantum Rifle | -2/Quarantine | Hacked Alien Tech Used ----------------- Integrated Mediator Core Expander Transdimensional Reconstructor Core Cannon Subatomic Replicator Achievements -------------- Gun Specialist Hot Stuff Hydra Junior Dev Not Today, Chutes Red Leader Robotopia Challenges ------------ None Game ------ Seed GreatMultitargetingLegs Manual? 0 Play Time 10:23:24 Cumulative 838.6 hours Start 2025.11.20 @ 06:22:46 End 2025.11.25 @ 11:59:02 Sessions 11 Manual Loads 0 Difficulty Rogue Special Mode None Game No. 186 Rogue 186 Adventurer 0 Explorer 0 Win Type 9 Total 52 Types 13/9/11/2/2/1/9/2/1/2 Lore% 83 Gallery% 87 Achievement% 73 Wizard Run 0 Options --------- Layout 1 ASCII 0 Keyboard 0 Movement Mouse Keybinds 0 Fullscreen 1 Font 24/Smallcaps Map View 50x35 Zoom Use 0% Tactical HUD 1 Map Filters NONE Filters NONE Steam 1 RUN: 877d86a7-4f21-4e91-bfe8-e1d4757a4a52